Workbook

Sheet Cover
A13: Customer: | B13: VOLVO
A15: Program: | B15: 6700
A17: Commodity: | B17: FIREWALL
A19: Plant: | B19: Dublin Virginia
A21: Job # | B21: 16148
A23: Date: | B23: 2022-02-21
A25: Cycle Time: | B25: 212

Sheet STA 010 OPER LOAD (REV1)
B2: Man and Machine Motions | AB2: Operator | CR2: =Cover!B13 -> VOLVO
B3: PRELIMINARY TIMING ESTIMATES | AB3: Machine | CR3: =Cover!B15 -> 6700
AB4: Robot | CR4: =Cover!B17 -> FIREWALL
F5: =Q8-AP8 -> 99.8 | AB5: Operator Wait | CR5: =Cover!B19 -> Dublin Virginia
A6: TOOL DESCRIPTION: | E6: Hours | F6: REQUIRED | Q6: TOTAL TIME | AP6: TOTAL TIME | BO6: TOTAL MILES WALKED | DC6: ROBOT | DW6: OPERATOR TIME | GE6: MACHINE
A7: =RIGHT(CELL("filename",D2),LEN(CELL("filename",D2))-FIND("]",CELL("filename",D2))) -> STA 010 OPER LOAD (REV1) | E7: /Shift | F7: JPH | Q7: AVAILABLE | AP7: UTILIZED | BO7: APPROX. 8 HR SHIFT | DC7: TIME | DW7: WORK | EQ7: WAIT | FK7: % UTIL. | GE7: TIME
E8: 7.4 | F8: =3600/Q8 -> 16.98113208 | Q8: =Cover!B25 -> 212 | AP8: 112.2 | BO8: 2.951114923 | DC8: N/A | DW8: 98.6 | EQ8: 113.4 | FK8: 46.50943375 | GE8: 29
A9: step | B9: STATION | C9: Cyl. | D9: WALK | F9: RUN | CW9: CYCLE TIME (seconds)
A10: # | B10: DESCRIPTION | C10: Num. | D10: DIST. | E10: SEC | F10: SEC | G10: 10.59999943 | Q10: =2*$G$10 -> 21.19999886 | AA10: =3*$G$10 -> 31.79999828 | AK10: =4*$G$10 -> 42.39999771 | AU10: =5*$G$10 -> 52.99999714 | BE10: =6*$G$10 -> 63.59999657 | BO10: =7*$G$10 -> 74.19999599 | BY10: =8*$G$10 -> 84.79999542 | CI10: =9*$G$10 -> 95.39999485 | CS10: =10*$G$10 -> 105.9999943 | DC10: =11*$G$10 -> 116.5999937 | DM10: =12*$G$10 -> 127.1999931 | DW10: =13*$G$10 -> 137.7999926 | EG10: =14*$G$10 -> 148.399992 | EQ10: =15*$G$10 -> 158.9999914 | FA10: =16*$G$10 -> 169.5999908 | FK10: =17*$G$10 -> 180.1999903 | FU10: =18*$G$10 -> 190.7999897 | GE10: =19*$G$10 -> 201.3999891 | GO10: =20*$G$10 -> 211.9999886
A11: 1 | B11: OPERATOR LOAD | DY11: 2 | IP11: 2 | IQ11: 2
A12: =A11+1 -> 2 | B12: 010-GEO Slide enters Loading Station Preloaded WSHIELD | E12: 9 | F12: =E12 -> 9 | IP12: 3
A13: =A12+1 -> 3 | B13: Oper presses palm button | E13: 0.5 | F13: =F12+E13 -> 9.5 | IP13: 2
A14: =A13+1 -> 4 | B14: 010-GEO Stage 01 All Shot Pins Retracts | C14: UQ 1.1 UQ 1.2 UQ 1.3 UQ 3.1 UQ 3.2 UQ 3.3 | E14: 1 | F14: =F13+E14 -> 10.5 | IP14: 3
A15: =A14+1 -> 5 | B15: 010-GEO Stage 01 All Clamps open | C15: UQ 2.1 UQ 2.2 UQ 2.3 UQ 4.1 UQ 4.2 UQ 4.3 UQ 4.4 | E15: 1 | F15: 11.5 | IP15: 3
A16: =A15+1 -> 6 | B16: 010-GEO Stage 02 MGP Guide Cylinder Extend | C16: UQ 6.1 UQ 6.2 UQ 6.3 UQ 6.4 UQ 12.1 UQ 12.2 | E16: 1 | F16: 12.5 | IP16: 3
IP17: 2
A18: =A17+1 -> 1 | B18: Oper 1 & 2 enter cell | D18: 4 | E18: =D18*0.3 -> 1.2 | F18: =F16+E18 -> 13.7 | IP18: 2
A19: 2 | B19: Oper 1 load CONSOLE STRUT RH 78524169 | E19: 1.8 | F19: 15.5 | IP19: 2 | IQ19: 4
A20: 3 | B20: Oper 2 load CONSOLE STRUT LH 78524167 | E20: 1.8 | F20: 17.3 | IP20: 2
A21: 4 | B21: Oper 1 & 2 walk to container | D21: 8 | E21: =D21*0.3 -> 2.4 | F21: 19.7 | IP21: 2
A22: 5 | B22: Oper 1 & 2 obtain CROSS MBR LH/RH | E22: 2.4 | F22: 22.1 | IP22: 2 | IQ22: 4
A23: 6 | B23: Oper 1 & 2 re-enter cell w/ CROSS MBR LH/RH | D23: 8 | E23: =D23*0.3 -> 2.4 | F23: =F22+E23 -> 24.5 | IP23: 2
A24: 7 | B24: Oper 1 load CROSS MBR RH 78559413 | E24: 3 | F24: 27.5 | IP24: 2
A25: 8 | B25: Oper 2 load CROSS MBR LH 78559410 | E25: 3 | F25: 30.5 | IP25: 2
A26: 9 | B26: Oper 1 & 2 walk to container | D26: 8 | E26: =D26*0.3 -> 2.4 | F26: 32.9 | IP26: 2
A27: 10 | B27: Oper 1 & 2 obtain BRKT END CAP LH/RH | E27: 2.4 | F27: 35.3 | IP27: 2
A28: 11 | B28: Oper 1 & 2 re-enter cell w/ BRKT END CAP LH/RH | E28: 2.4 | F28: 37.7 | IP28: 2
A29: 12 | B29: Oper 1 load BRKT END CAP RH 78524157 | E29: 1.8 | F29: 39.5 | IP29: 2
A30: 13 | B30: Oper 2 load BRKT END CAP LH 78524156 | E30: 1.8 | F30: 41.3 | IP30: 2
A31: 14 | B31: Oper 2 walks to Stage 01 unloading position | D31: 8 | E31: =D31*0.3 -> 2.4 | F31: 43.7 | IP31: 2
A32: 15 | B32: Oper 1 & 2 transfer WSHIELD ASM to Stage 02 | E32: 4.2 | F32: 47.9 | IP32: 2
A33: 16 | B33: 010-GEO Stage 01 Shot Pins Extend | E33: 1 | F33: 48.9 | IP33: 3
A34: 17 | B34: Oper 1 & 2 walk to container | D34: 16 | E34: =D34*0.3 -> 4.8 | F34: =F32+E34 -> 52.7 | IP34: 2
A35: 18 | B35: Oper 1 & 2 obtain PNL FIREWALL LHD 78528490 | E35: 3 | F35: 55.7 | IP35: 2
A36: 19 | B36: Oper 1 & 2 walk with asm to load | D36: 16 | E36: =D36*0.3 -> 4.8 | F36: 60.5 | IP36: 2 | IQ36: 4
A37: 20 | B37: Oper 1 & 2 load PNL FIREWALL LHD 78528490 | E37: 3 | F37: 63.5 | IP37: 2
A38: 21 | B38: Oper 1 & 2 turn to container | D38: 2 | E38: =D38*0.3 -> 0.6 | F38: 64.1 | IP38: 2
A39: 22 | B39: Oper 1 obtains BRKT STEERING COL 78526614 | E39: 1.8 | F39: 65.9 | IP39: 2 | IQ39: 4
IP40: 2
A41: =A40+1 -> 1 | B41: Oper 2 obtains BRKT WSHIELD LWR QTY (3) | E41: 3 | F41: =F39+E41 -> 68.9 | IP41: 2 | IQ41: 2
A42: 2 | B42: Oper 1 & 2 turn to tool | D42: 2 | E42: =D42*0.3 -> 0.6 | F42: 69.5 | IP42: 2
A43: 3 | B43: Oper 1 load BRKT STEERING COL 78526614 | E43: 1.8 | F43: 71.3 | IP43: 2
A44: 4 | B44: Oper 2 load QTY (3) BRKT WSHIELD LWR 78522281 | E44: 3.2 | F44: 74.5 | IP44: 2
A45: 5 | B45: Oper 2 walks to palm button | D45: 8 | E45: =D45*0.3 -> 2.4 | F45: 76.9 | IP45: 2
A46: 6 | B46: Oper 2 presses palm button | E46: 0.5 | F46: 77.4 | IP46: 2
A47: 7 | B47: Oper 1 & 2 walk to container | D47: 8 | E47: =D47*0.3 -> 2.4 | F47: 79.8 | IP47: 2
A48: 8 | B48: Oper 1 obtains WSHIELD REINF LH and waits | E48: 2.4 | F48: 82.2 | DY48: 2 | IP48: 2 | IQ48: 2
A49: 9 | B49: Oper 2 obtains PNL WSHIELD LWR 78524160 | E49: 2.4 | F49: =F47+E49 -> 82.2 | IP49: 2
A50: 10 | B50: Oper 2 enters cell w/ PNL WSHIELD LWR | D50: 8 | E50: =D50*0.3 -> 2.4 | F50: =F49+E50 -> 84.6 | IP50: 2
A51: 11 | B51: Oper 2 load PNL WSHIELD LWR 78524160 | E51: 3.2 | F51: =F50+E51 -> 87.8 | IP51: 2
A52: 12 | B52: Oper 2 exit cell to palm buttons | D52: 4 | E52: =D52*0.3 -> 1.2 | F52: 89 | IP52: 2
A53: 13 | B53: Oper presses palm button | E53: 0.5 | F53: 89.5 | IP53: 2
A54: 14 | B54: 010-GEO Stage 01 Clamps Close | C54: UQ 2.1 UQ 2.2 UQ 2.3 | E54: 1 | F54: 90.5 | IP54: 3
A55: 15 | B55: 010-GEO Stage 01 Shot Pin Extend | C55: UQ 3.1 UQ 3.2 UQ 3.3 | E55: 1 | F55: 91.5 | IP55: 3
A56: 16 | B56: Oper 2 walks to container | D56: 4 | E56: =D56*0.3 -> 1.2 | F56: =F53+E56 -> 90.7 | IP56: 2
A57: 17 | B57: Oper 2 Obtains WSHIELD REINF RH 78522284 | E57: 1.8 | F57: =F56+E57 -> 92.5 | IP57: 2
A58: 18 | B58: Oper 1 & 2 enter cell | D58: 8 | E58: =D58*0.3 -> 2.4 | F58: =F57+E58 -> 94.9 | IP58: 2 | IQ58: 4
A59: 19 | B59: Oper 1 load WSHIELD REINF LH 78522285 | E59: 1.8 | F59: 96.7 | IP59: 2
A60: 20 | B60: Oper 2 load WSHIELD REINF RH 78522284 | E60: 1.8 | F60: 98.5 | IP60: 2
A61: =A60+1 -> 21 | B61: Oper 1 & 2 exit cell to palm buttons | D61: 8 | E61: =D61*0.3 -> 2.4 | F61: 100.9 | IP61: 2 | IQ61: 4
A62: 22 | B62: Oper presses palm button | E62: 0.5 | F62: 101.4 | IP62: 2
A63: 23 | B63: 010-GEO Stage 01 Clamp Close | C63: UQ 4.1 UQ 4.2 UQ 4.3 UQ 4.4 | E63: 1 | F63: 102.4 | IP63: 3
A64: 24 | B64: 010-GEO Stage 02 Strut Panel Clamp Close | C64: UQ 5.1 UQ 5.2 | E64: 1 | F64: =F63+E64 -> 103.4 | IP64: 3
A65: 25 | B65: 010-GEO Stage 02 Slide Extend | C65: UQ 7.1 UQ 7.2 | E65: 1 | F65: =F64 -> 103.4 | IP65: 3
A66: 26 | B66: 010-GEO Stage 02 Slide Cylinder Clamp Close | C66: UQ 8.1 UQ 8.2 | E66: 1 | F66: =F64 -> 103.4 | IP66: 3
A67: 27 | B67: 010-GEO All Clamps Close | C67: UQ 9.1 UQ 9.2 UQ 10.1 UQ 10.2 UQ 10.3 UQ 11.1 TO UQ 11.6 | E67: 1 | F67: =F64 -> 103.4 | IP67: 3
A68: =A67+1 -> 28 | B68: 010-GEO Slide enters Welding Station | E68: 9 | F68: =F67+E69 -> 105.4 | IP68: 3
A69: =A67+1 -> 28 | B69: Oper 1 & 2 walk to container | E69: 2 | F69: =F68+E69 -> 107.4 | IP69: 2
A70: =A69+1 -> 29 | B70: Oper 1 obtain CONSOLE STRUT RH 78524169 | E70: 1.8 | F70: =F69+E70 -> 109.2 | IP70: 2
A71: 30 | B71: Oper 2 obtain CONSOLE STRUT LH 78524167 | E71: 1.8 | F71: =F70+E71 -> 111 | IP71: 2
A72: 31 | B72: Oper 1 & 2 walk to cell | D72: 4 | E72: =D72*0.3 -> 1.2 | F72: 112.2 | IP72: 2
IQ73: 2
IP78: 2
IP79: 2
B81: Total Cycle Time | F81: =MAX(F11:F80) -> 112.2
B82: Estimated Walk Total
B83: Jobs Per Hour | F83: =SUM(3600/F81) -> 32.0855615

Sheet STA 010 GEO
B2: Man and Machine Motions | AB2: Operator | CR2: =Cover!B13 -> VOLVO
B3: PRELIMINARY TIMING ESTIMATES | AB3: Machine | CR3: =Cover!B15 -> 6700
AB4: Robot | CR4: =Cover!B17 -> FIREWALL
F5: =Q8-AP8 -> -21.78 | AB5: Operator Wait | CR5: =Cover!B19 -> Dublin Virginia
A6: TOOL DESCRIPTION: | E6: Hours | F6: REQUIRED | Q6: TOTAL TIME | AP6: TOTAL TIME | BO6: TOTAL MILES WALKED | DC6: ROBOT | DW6: OPERATOR TIME | GE6: MACHINE
A7: =RIGHT(CELL("filename",D2),LEN(CELL("filename",D2))-FIND("]",CELL("filename",D2))) -> STA 010 GEO | E7: /Shift | F7: JPH | Q7: AVAILABLE | AP7: UTILIZED | BO7: APPROX. 8 HR SHIFT | DC7: TIME | DW7: WORK | EQ7: WAIT | FK7: % UTIL. | GE7: TIME
E8: 7.4 | F8: =3600/Q8 -> 16.98113208 | Q8: =Cover!B25 -> 212 | AP8: 233.78 | BO8: N/A | DC8: 273.04 | DW8: N/A | EQ8: N/A | FK8: N/A | GE8: 19.25
A9: step | B9: STATION | C9: Cyl. | D9: WALK | F9: RUN | CW9: CYCLE TIME (seconds)
A10: # | B10: DESCRIPTION | C10: Num. | D10: DIST. | E10: SEC | F10: SEC | G10: 12 | Q10: =2*$G$10 -> 24 | AA10: =3*$G$10 -> 36 | AK10: =4*$G$10 -> 48 | AU10: =5*$G$10 -> 60 | BE10: =6*$G$10 -> 72 | BO10: =7*$G$10 -> 84 | BY10: =8*$G$10 -> 96 | CI10: =9*$G$10 -> 108 | CS10: =10*$G$10 -> 120 | DC10: =11*$G$10 -> 132 | DM10: =12*$G$10 -> 144 | DW10: =13*$G$10 -> 156 | EG10: =14*$G$10 -> 168 | EQ10: =15*$G$10 -> 180 | FA10: =16*$G$10 -> 192 | FK10: =17*$G$10 -> 204 | FU10: =18*$G$10 -> 216 | GE10: =19*$G$10 -> 228 | GO10: =20*$G$10 -> 240
A11: 1 | B11: Logic Delay | E11: 1 | F11: =E11 -> 1 | IP11: 5
A12: =A11+1 -> 2 | B12: 010-GEO Station Load Delay Reference | E12: 105 | F12: =F11+E12 -> 106 | IP12: 5
A13: 3 | B13: ROBOT WELD | IP13: 2 | IQ13: 2
A14: 4 | B14: Robot V01AR21 moves to weld | E14: 0.92 | F14: =F12+E14 -> 106.92 | IP14: 4 | IQ14: 4
A15: 5 | B15: Robot V01AR21 welds 4 spots STG 01 (RCS) | E15: 12.73 | F15: =E15+F14 -> 119.65 | IP15: 4 | IQ15: 4
A16: 6 | B16: Robot V01AR21 welds 10 spots STG 02 SEQ 1 (RCS) | E16: 39.15 | F16: =F15+E16 -> 158.8 | IP16: 4
A17: 7 | B17: 010-GEO Clamps Open | C17: UQ 12.1 UQ 12.2 UQ 5.1 UQ 5.2 UQ 8.1 UQ 8.2 | E17: 1 | F17: =F16+E17 -> 159.8 | IP17: 3
A18: 8 | B18: 010-GEO Slide Retract | C18: UQ 7.1 UQ 7.2 | E18: 3 | F18: =F17+E18 -> 162.8 | IP18: 3
A19: 9 | B19: Robot V01AR21 welds 15 spots STG 02 SEQ 2 (RCS) | E19: 47.7 | F19: =F18+E19 -> 210.5 | IP19: 4
IP20: 2
A21: =A20+1 -> 1 | B21: Robot V01AR23 moves to weld | E21: 0.82 | F21: =F12+E21 -> 106.82 | IP21: 4
A22: =A21+1 -> 2 | B22: Robot V01AR23 welds 7 spots STG 02 SEQ 1 (RCS) | E22: 27.2 | F22: =F21+E22 -> 134.02 | IP22: 4
A23: =A22+1 -> 3 | B23: Robot V01AR23 welds 14 spots STG 02 SEQ 2 (RCS) | E23: 44.72 | F23: =F22+E23 -> 178.74 | IP23: 4
A24: =A23+1 -> 4 | B24: Robot V01AR23 welds 2 spots STG 01 (RCS) | E24: 9.79 | F24: =F23+E24 -> 188.53 | IP24: 4
IP25: 2
A26: =A25+1 -> 1 | B26: Robot V01AR22 moves to weld | E26: 0.75 | F26: =F12+E26 -> 106.75 | IP26: 4
A27: 2 | B27: Robot V01AR22 welds 33 spots STG 01 (RCS) | E27: 81.23 | F27: =F26+E27 -> 187.98 | IP27: 4
A28: 3 | B28: 010-GEO Shot Pin & MGP Guide Cylinder Retracts | C28: UQ 6.1 UQ 6.2 UQ 6.3 UQ 6.4 | E28: 1 | F28: =F19+E28 -> 211.5 | IP28: 3
A29: 4 | B29: 010-GEO Clamps Open | C29: UQ 9.1 UQ 9.2 UQ 11.1 TO UQ 11.6 | E29: 2.25 | F29: =F28+E29 -> 213.75 | IP29: 3
A30: 5 | B30: Robot V01AR41 moves to pick | E30: 5.37 | F30: =F29+E30 -> 219.12 | IP30: 4
A31: 6 | B31: Robot V01AR41 Shot Pins Extended | C31: UQ 1.1 UQ 1.2 | E31: 1 | F31: =F30+E31 -> 220.12 | IP31: 3
A32: 7 | B32: Robot V01AR41 Clamps Close | C32: UQ 2.1 TO UQ 2.7 | E32: 1 | F32: =F31+E32 -> 221.12 | IP32: 3
A33: 8 | B33: 010-GEO Remaining Clamps Open | C33: UQ 10.1 UQ 10.2 UQ 10.3 | E33: 1 | F33: =F32+E33 -> 222.12 | IP33: 3
A34: 9 | B34: Robot V01AR41 Clears fixture | E34: 2.66 | F34: 224.78 | IP34: 4
A35: 10 | B35: 010-GEO Tooling re-turns to load | E35: 9 | F35: 233.78 | IP35: 3
IP36: 3
A38: =A37+1 -> 1 | B38: (RCS Timing)
A39: =A38+1 -> 2 | B39: Total Cycle Time | F39: =MAX(F13:F37) -> 233.78
A40: 3 | B40: Estimated Walk Total | D40: =SUM(D13:D39) -> 0
A41: 4 | B41: Jobs Per Hour | F41: =SUM(3600/F39) -> 15.39909316

Sheet STA 010 IN-AIR + PED
B2: Man and Machine Motions | AB2: Operator | CR2: =Cover!B13 -> VOLVO
B3: PRELIMINARY TIMING ESTIMATES | AB3: Machine | CR3: =Cover!B15 -> 6700
AB4: Robot | CR4: =Cover!B17 -> FIREWALL
F5: =Q8-AP8 -> 3.15 | AB5: Operator Wait | CR5: =Cover!B19 -> Dublin Virginia
A6: TOOL DESCRIPTION: | E6: Hours | F6: REQUIRED | Q6: TOTAL TIME | AP6: TOTAL TIME | BO6: TOTAL MILES WALKED | DC6: ROBOT | DW6: OPERATOR TIME | GE6: MACHINE
A7: =RIGHT(CELL("filename",D2),LEN(CELL("filename",D2))-FIND("]",CELL("filename",D2))) -> STA 010 IN-AIR + PED | E7: /Shift | F7: JPH | Q7: AVAILABLE | AP7: UTILIZED | BO7: APPROX. 8 HR SHIFT | DC7: TIME | DW7: WORK | EQ7: WAIT | FK7: % UTIL. | GE7: TIME
E8: 7.4 | F8: =3600/Q8 -> 16.98113208 | Q8: =Cover!B25 -> 212 | AP8: =F54 -> 208.85 | BO8: N/A | DC8: 262.5 | DW8: N/A | EQ8: N/A | FK8: N/A | GE8: 16.44
A9: step | B9: STATION | C9: Cyl. | D9: WALK | F9: RUN | CW9: CYCLE TIME (seconds)
A10: # | B10: DESCRIPTION | C10: Num. | D10: DIST. | E10: SEC | F10: SEC | G10: 10.59999943 | Q10: =2*$G$10 -> 21.19999886 | AA10: =3*$G$10 -> 31.79999828 | AK10: =4*$G$10 -> 42.39999771 | AU10: =5*$G$10 -> 52.99999714 | BE10: =6*$G$10 -> 63.59999657 | BO10: =7*$G$10 -> 74.19999599 | BY10: =8*$G$10 -> 84.79999542 | CI10: =9*$G$10 -> 95.39999485 | CS10: =10*$G$10 -> 105.9999943 | DC10: =11*$G$10 -> 116.5999937 | DM10: =12*$G$10 -> 127.1999931 | DW10: =13*$G$10 -> 137.7999926 | EG10: =14*$G$10 -> 148.399992 | EQ10: =15*$G$10 -> 158.9999914 | FA10: =16*$G$10 -> 169.5999908 | FK10: =17*$G$10 -> 180.1999903 | FU10: =18*$G$10 -> 190.7999897 | GE10: =19*$G$10 -> 201.3999891 | GO10: =20*$G$10 -> 211.9999886
A11: 1 | B11: Logic Delay | E11: 1 | F11: =E11 -> 1 | IP11: 5
A12: =A11+1 -> 2 | B12: ROBOT LOAD TO IN AIR | IP12: 2
A13: 3 | B13: Robot V01AR41 moves to pick From Sta010 | E13: 5.37 | F13: =F11+E13 -> 6.37 | IP13: 3
A14: 4 | B14: Robot V01AR41 Shot Pins Extended | C14: UQ 1.1 UQ 1.2 | E14: 1 | F14: =E14+F13 -> 7.37 | IP14: 3
A15: 5 | B15: Robot V01AR41 Clamps Close | C15: UQ 2.1 TO UQ 2.7 | E15: 1 | F15: =E15+F14 -> 8.37 | IP15: 3
A16: 6 | B16: 010-GEO Remaining Clamps Open | C16: UQ 10.1 UQ 10.2 UQ 10.3 | E16: 1 | F16: 9.37 | IP16: 3
A17: 7 | B17: Robot V01AR41 Clears fixture | E17: 2.66 | F17: =E17+F16 -> 12.03 | IP17: 3
A18: 8 | B18: Robot V01AR41-MH1 clears to in air | E18: 2.66 | F18: =E18+F17 -> 14.69 | IP18: 4
A19: 9 | B19: Robot V01AR41-MH1 moves to in air welding | E19: 0.85 | F19: =E19+F18 -> 15.54 | IP19: 4
A20: 10 | B20: 010-GEO Clamps Close | E20: 1.41 | F20: =E20+F19 -> 16.95 | IP20: 3
A21: 11 | B21: ROBOT IN AIR WELD | IP21: 2
A22: 12 | B22: Robot V01AR21 welds 15 spots (RCS) | E22: 42.61 | F22: =F20+E22 -> 59.56 | IP22: 4
A23: 13 | B23: Robot V01AR21 moves to changer / tip dress | E23: 3 | F23: =F22+E23 -> 62.56 | IP23: 4
A24: 14 | B24: Robot V01AR21 Tip dress after every 2nd body | E24: 7.5 | F24: =F23+E24 -> 70.06 | IP24: 3
A25: 15 | B25: Robot V01AR21 returns home | E25: 0.82 | F25: =F24+E25 -> 70.88 | IP25: 4
A26: 16 | IP26: 2
A27: 17 | B27: Robot V01AR23 welds 14 spots (RCS) | E27: 31.67 | F27: =F20+E27 -> 48.62 | IP27: 4
A28: 18 | B28: Robot V01AR23 moves to changer / tip dress | E28: 3 | F28: =F27+E28 -> 51.62 | IP28: 4
A29: 19 | B29: Robot V01AR23 Tip dress after every 2nd body | E29: 7.5 | F29: =F28+E29 -> 59.12 | IP29: 3
A30: 20 | B30: Robot V01AR23 returns home | E30: 2.15 | F30: =F29+E30 -> 61.27 | IP30: 4
A31: 21 | IP31: 2
A32: 22 | B32: Robot V01AR22 welds 14 spots (RCS) | E32: 35.48 | F32: =F20+E32 -> 52.43 | IP32: 4
A33: 23 | B33: Robot V01AR22 moves to changer / tip dress | E33: 3 | F33: =F32+E33 -> 55.43 | IP33: 4
A34: 24 | B34: Robot V01AR22 Tip dress after every 2nd body | E34: 7.5 | F34: =F33+E34 -> 62.93 | IP34: 3
A35: 25 | B35: Robot V01AR22 returns home | E35: 0.97 | F35: =F34+E35 -> 63.9 | IP35: 4
A36: 26 | B36: ROBOT PED WELD | IP36: 2 | IQ36: 4
A37: 27 | B37: Robot V01AR41 clears to air welding | E37: 4.55 | F37: =F22+E37 -> 64.11 | IP37: 4
A38: 28 | B38: Robot V01AR41 Ped Pounce | E38: 0.02 | F38: =E38+F37 -> 64.13 | IP38: 4 | IQ38: 3
A39: 29 | B39: PED welds 34 spots (RCS) | E39: 121.82 | F39: =F38+E39 -> 185.95 | IP39: 4
A40: 30 | B40: Robot V01AR41 drop pounce | E40: 2.2 | F40: =F39+E40 -> 188.15 | IP40: 4 | IQ40: 3
A41: 31 | B41: Robot V01AR41 drop into Sta030 | E41: 9.01 | F41: =F40+E41 -> 197.16 | IP41: 4
A42: 32 | B42: 030-Respot tooling Z direction 2 Clamps Close | C42: UQ 3.1 UQ 3.2 | E42: 1 | F42: 198.16 | IP42: 3
A43: 33 | B43: 030-Respot tooling X & Z direction Clamps Close | C43: UQ 1.1 to UQ 1.6 UQ 2.1 UQ 2.2 UQ 2.3 | E43: 1 | F43: 199.16 | IP43: 3
A44: 34 | B44: Robot V01AR41-MH1 Pins Retracted | C44: UQ 1.1 UQ 1.2 | E44: 1 | F44: 200.16 | IP44: 3
A45: 35 | B45: Robot V01AR41-MH1 clamps open | C45: UQ 2.1 TO UQ 2.7 | E45: 1 | F45: 201.16 | IP45: 3
A46: 36 | B46: Robot V01AR41 drop clear | E46: 5.88 | F46: 207.04 | IP46: 4
A47: 37 | B47: Robot V01AR41 returns home | E47: 1.81 | F47: 208.85 | IP47: 4
B50: Robot R02 moves to changer / tip dress
B51: Robot R02 Tip dress after every 2nd body | IP51: 3
B53: (RCS Timing)
B54: Total Cycle Time | F54: =MAX(F12:F52) -> 208.85
B55: Estimated Walk Total | D55: =SUM(D12:D54) -> 0
B56: Jobs Per Hour | F56: =SUM(3600/F54) -> 17.23725162

Sheet STA 020 OPER LOAD (REV1)
B2: Man and Machine Motions | AB2: Operator | CR2: =Cover!B13 -> VOLVO
B3: PRELIMINARY TIMING ESTIMATES | AB3: Machine | CR3: =Cover!B15 -> 6700
AB4: Robot | CR4: =Cover!B17 -> FIREWALL
F5: =Q8-AP8 -> 142.2 | AB5: Operator Wait | CR5: =Cover!B19 -> Dublin Virginia
A6: TOOL DESCRIPTION: | E6: Hours | F6: REQUIRED | Q6: TOTAL TIME | AP6: TOTAL TIME | BO6: TOTAL MILES WALKED | DC6: ROBOT | DW6: OPERATOR TIME | GE6: MACHINE
A7: =RIGHT(CELL("filename",D2),LEN(CELL("filename",D2))-FIND("]",CELL("filename",D2))) -> STA 020 OPER LOAD (REV1) | E7: /Shift | F7: JPH | Q7: AVAILABLE | AP7: UTILIZED | BO7: APPROX. 8 HR SHIFT | DC7: TIME | DW7: WORK | EQ7: WAIT | FK7: % UTIL. | GE7: TIME
E8: 7.4 | F8: =3600/Q8 -> 16.98113208 | Q8: =Cover!B25 -> 212 | AP8: 69.8 | BO8: 2.736921098 | DC8: N/A | DW8: 99.7 | EQ8: 112.3 | FK8: 47.02830124 | GE8: 24
A9: step | B9: STATION | C9: Cyl. | D9: WALK | F9: RUN | CW9: CYCLE TIME (seconds)
A10: # | B10: DESCRIPTION | C10: Num. | D10: DIST. | E10: SEC | F10: SEC | G10: 15 | Q10: =2*$G$10 -> 30 | AA10: =3*$G$10 -> 45 | AK10: =4*$G$10 -> 60 | AU10: =5*$G$10 -> 75 | BE10: =6*$G$10 -> 90 | BO10: =7*$G$10 -> 105 | BY10: =8*$G$10 -> 120 | CI10: =9*$G$10 -> 135 | CS10: =10*$G$10 -> 150 | DC10: =11*$G$10 -> 165 | DM10: =12*$G$10 -> 180 | DW10: =13*$G$10 -> 195 | EG10: =14*$G$10 -> 210 | EQ10: =15*$G$10 -> 225 | FA10: =16*$G$10 -> 240 | FK10: =17*$G$10 -> 255 | FU10: =18*$G$10 -> 270 | GE10: =19*$G$10 -> 285 | GO10: =20*$G$10 -> 300
A11: 1 | B11: 020-GEO Slide Enters Loading Station | E11: 9 | F11: =E11 -> 9 | IP11: 5
A12: =A11+1 -> 2 | B12: OPERATOR 1 STA 020 LOAD | DY12: 2 | IP12: 2 | IQ12: 2
A13: 3 | B13: 020-GEO Shot Pins Extend | E13: 1 | F13: =F11+E13 -> 10 | DY13: 2 | IP13: 3 | IQ13: 2
A14: 4 | B14: Oper 1 walks to fixture | D14: 4 | E14: =D14*0.3 -> 1.2 | F14: =E14+F13 -> 11.2 | IP14: 2 | IQ14: 3
A15: 5 | B15: Oper 1 loads CROSS MBR REAR 78523970 | E15: 3.6 | F15: =E15+F14 -> 14.8 | IP15: 2
A16: 6 | B16: Oper 1 walks to container | D16: 6 | E16: =D16*0.3 -> 1.8 | F16: 16.6 | IP16: 2
A17: 7 | B17: Oper 1 obtains PNL WSHIELD UPR 78523933 | E17: 3 | F17: 19.6 | DY17: 2 | IP17: 2 | IQ17: 2
A18: 8 | B18: Oper 1 walks to fixture | D18: 6 | E18: =D18*0.3 -> 1.8 | F18: 21.4 | IP18: 2
A19: 9 | B19: Oper 1 loads PNL WSHIELD UPR 78523933 | E19: 3 | F19: 24.4 | DY19: 2 | IP19: 2 | IQ19: 2
A20: 10 | B20: Oper 1 walks to container | D20: 6 | E20: =D20*0.3 -> 1.8 | F20: 26.2 | IP20: 2
A21: 11 | B21: Oper 1 obtains BRKT TIE PLT LH 78564676 | E21: 3.6 | F21: 29.8 | IP21: 2
A22: 12 | B22: Oper 1 obtains BRKT IP MNT LH 78546405 | E22: 1.8 | F22: =F21+E22 -> 31.6 | IP22: 2
A23: 13 | B23: Oper 1 walks to fixture | D23: 6 | E23: =D23*0.3 -> 1.8 | F23: =F22+E23 -> 33.4 | IP23: 2
A24: 14 | B24: Oper 1 loads BRKT TIE PLT LH 78564676 | E24: 3.6 | F24: 37 | IP24: 2
A25: 15 | B25: Oper 1 loads BRKT IP MNT LH 78546405 | E25: 1.8 | F25: =F24+E25 -> 38.8 | IP25: 2
A26: 16 | B26: Oper 1 walks to container | D26: 6 | E26: =D26*0.3 -> 1.8 | F26: =F25+E26 -> 40.6 | IP26: 2
A27: 17 | B27: Oper 1 obtains BRKT TIE PLT RH 78564677 | E27: 4.8 | F27: 45.4 | IP27: 2
A28: 18 | B28: Oper 1 obtains BRKT IP MNT RH 78555835 | E28: 1.8 | F28: =F27+E28 -> 47.2 | IP28: 2
A29: 19 | B29: Oper 1 walks to fixture | D29: 6 | E29: =D29*0.3 -> 1.8 | F29: =F28+E29 -> 49 | IP29: 2
A30: 20 | B30: Oper 1 loads BRKT TIE PLT RH 78564677 | E30: 6 | F30: 55 | IP30: 2
A31: 21 | B31: Oper 1 loads BRKT IP MNT RH 78555835 | E31: 1.8 | F31: =F30+E31 -> 56.8 | IP31: 2
A32: 22 | B32: Oper 1 exits cell | D32: 3 | E32: =D32*0.3 -> 0.9 | F32: =F31+E33 -> 57.3 | IP32: 2 | IQ32: 2
A33: 23 | B33: Oper 1 & 2 press PB | E33: 0.5 | F33: =E33+F32 -> 57.8 | IP33: 2
A34: 24 | B34: 020-GEO Clamps Close | C34: UQ 2.1 TO UQ 2.4 UQ 3.1 TO UQ 3.3 UQ 4.1 TO UQ 4.3 UQ 9.1 TO UQ 9.5 UQ 10.1 TO UQ 10.6 UQ 11.1 TO 11.3 | E34: 1 | F34: =F33+E34 -> 58.8 | IP34: 3
A35: 25 | B35: 020-GEO X,Z Dump (Part Positioner) & Clamp close | C35: UQ 8.1 UQ 8.2 | E35: 2 | F35: =F34+E35 -> 60.8 | IP35: 3
A36: 26 | B36: 020-GEO Slide transfers to weld station | D36: 29 | E36: 9 | F36: 69.8 | IP36: 3
A37: 27 | B37: Oper 1 walks to container | D37: 2 | E37: =D37*0.3 -> 0.6 | F37: =E37+F33 -> 58.4 | IP37: 2
A38: 28 | B38: Oper 1 obtains CROSS MBR REAR 78523970 | E38: 3.6 | F38: =E38+F37 -> 62 | IP38: 2
A39: 29 | B39: Oper 1 walks to fixture | D39: 6 | E39: =D39*0.3 -> 1.8 | F39: =E39+F38 -> 63.8 | IP39: 2
A40: 30 | B40: OPERATOR 2 STA 020 LOAD | DY40: 2 | IP40: 2 | IQ40: 2
A41: 31 | B41: 020-GEO Shot Pins Extend (REF LINE 3) | E41: 1 | F41: =F11+E41 -> 10 | DY41: 2 | IP41: 3 | IQ41: 2
A42: 32 | B42: Oper 2 walks to fixture | D42: 4 | E42: =D42*0.3 -> 1.2 | F42: =E42+F41 -> 11.2 | IP42: 2 | IQ42: 3
A43: 33 | B43: Oper 2 loads BRKT UPR HINGE LH 78565601 | E43: 1.8 | F43: =E43+F42 -> 13 | IP43: 2
A44: =A43+1 -> 34 | B44: Oper 2 loads BRKT LWR HINGE LH 78565599 | E44: 1.8 | F44: =F43+E44 -> 14.8 | IP44: 2
A45: 35 | B45: Oper 2 walks to container | D45: 8 | E45: =D45*0.3 -> 2.4 | F45: =F44+E45 -> 17.2 | IP45: 2
A46: 36 | B46: Oper 2 obtains A/PLR LWR INR LH 78524162 | E46: 3 | F46: 20.2 | DY46: 2 | IP46: 2 | IQ46: 2
A47: 37 | B47: Oper 2 walks to fixture | D47: 8 | E47: =D47*0.3 -> 2.4 | F47: 22.6 | IP47: 2
A48: 38 | B48: Oper 2 loads A/PLR LWR INR LH 78524162 | E48: 3 | F48: 25.6 | DY48: 2 | IP48: 2 | IQ48: 2
A49: 39 | B49: Oper 2 walks to container | D49: 8 | E49: =D49*0.3 -> 2.4 | F49: 28 | IP49: 2
A50: 40 | B50: Oper 2 obtains BRKT UPR HINGE RH 78565595 | E50: 1.8 | F50: 29.8 | IP50: 2
A51: 41 | B51: Oper 2 obtains BRKT LWR HINGE RH 78565597 | E51: 1.8 | F51: =F50+E51 -> 31.6 | IP51: 2
A52: 42 | B52: Oper 2 walks to fixture | D52: 8 | E52: =D52*0.3 -> 2.4 | F52: =F51+E52 -> 34 | IP52: 2
A53: 43 | B53: Oper 2 loads BRKT UPR HINGE RH 78565595 | E53: 1.8 | F53: 35.8 | IP53: 2
A54: 44 | B54: Oper 2 loads BRKT LWR HINGE RH 78565597 | E54: 1.8 | F54: =F53+E54 -> 37.6 | IP54: 2
A55: 45 | B55: Oper 2 walks to container | D55: 8 | E55: =D55*0.3 -> 2.4 | F55: =F54+E55 -> 40 | IP55: 2
A56: 46 | B56: Oper 2 obtains CROSS MBR WSHIELD OTR 78522268 | E56: 2.4 | F56: 42.4 | IP56: 2
A57: 47 | B57: Oper 2 walks to fixture | D57: 8 | E57: =D57*0.3 -> 2.4 | F57: 44.8 | IP57: 2
A58: 48 | B58: Oper 2 loads CROSS MBR WSHIELD OTR 78522268 | E58: 3 | F58: 47.8 | IP58: 2
A59: 49 | B59: Oper 2 exits cell | D59: 4 | E59: =D59*0.3 -> 1.2 | F59: 49 | IP59: 2 | IQ59: 2
A60: 50 | B60: Oper 1 & 2 press PB (REF LINE 23) | E60: 0.5 | F60: =F33 -> 57.8 | IP60: 2
A61: =A60+1 -> 51 | B61: 020-GEO Clamps Close | E61: 1 | F61: =F34 -> 58.8 | IP61: 3
B62: 020-GEO X,Z Dump (Part Positioner) & Clamp close | E62: 2 | F62: =F35 -> 60.8 | IP62: 3
A63: =A61+1 -> 52 | B63: 020-GEO Slide transfers to weld station | D63: 29 | E63: 9 | F63: =F61+E63 -> 67.8 | IP63: 3
A64: =A63+1 -> 53 | B64: Oper 2 walks to container | D64: 2 | E64: =D64*0.3 -> 0.6 | F64: =F60+E64 -> 58.4 | IP64: 2
A65: 54 | B65: Oper 2 obtains BRKT UPR HINGE LH 78565601 | E65: 1.8 | F65: =F64+E65 -> 60.2 | IP65: 2
A66: 55 | B66: Oper 2 obtains BRKT LWR HINGE LH 78565599 | E66: 1.8 | F66: =F65+E66 -> 62 | IP66: 2
A67: 56 | B67: Oper 2 walks to fixture | D67: 6 | E67: =D67*0.3 -> 1.8 | F67: =F66+E67 -> 63.8 | IP67: 2
B72: Total Cycle Time | F72: =MAX(F12:F71) -> 69.8
B73: Estimated Walk Total | D73: =SUM(D12:D72) -> 173
B74: Jobs Per Hour | F74: =SUM(3600/F72) -> 51.57593123

Sheet STA 020 GEO
B2: Man and Machine Motions | AB2: Operator | CR2: =Cover!B13 -> VOLVO
B3: PRELIMINARY TIMING ESTIMATES | AB3: Machine | CR3: =Cover!B15 -> 6700
AB4: Robot | CR4: =Cover!B17 -> FIREWALL
F5: =Q8-AP8 -> 1.38 | AB5: Operator Wait | CR5: =Cover!B19 -> Dublin Virginia
A6: TOOL DESCRIPTION: | E6: Hours | F6: REQUIRED | Q6: TOTAL TIME | AP6: TOTAL TIME | BO6: TOTAL MILES WALKED | DC6: ROBOT | DW6: OPERATOR TIME | GE6: MACHINE
A7: =RIGHT(CELL("filename",D2),LEN(CELL("filename",D2))-FIND("]",CELL("filename",D2))) -> STA 020 GEO | E7: /Shift | F7: JPH | Q7: AVAILABLE | AP7: UTILIZED | BO7: APPROX. 8 HR SHIFT | DC7: TIME | DW7: WORK | EQ7: WAIT | FK7: % UTIL. | GE7: TIME
E8: 7.4 | F8: =3600/Q8 -> 16.98113208 | Q8: =Cover!B25 -> 212 | AP8: =F53 -> 210.62 | BO8: N/A | DC8: 182.07 | DW8: 67.8 | EQ8: 144.2 | FK8: 31.98113251 | GE8: 1
A9: step | B9: STATION | C9: Cyl. | D9: WALK | F9: RUN | CW9: CYCLE TIME (seconds)
A10: # | B10: DESCRIPTION | C10: Num. | D10: DIST. | E10: SEC | F10: SEC | G10: 10.59999943 | Q10: =2*$G$10 -> 21.19999886 | AA10: =3*$G$10 -> 31.79999828 | AK10: =4*$G$10 -> 42.39999771 | AU10: =5*$G$10 -> 52.99999714 | BE10: =6*$G$10 -> 63.59999657 | BO10: =7*$G$10 -> 74.19999599 | BY10: =8*$G$10 -> 84.79999542 | CI10: =9*$G$10 -> 95.39999485 | CS10: =10*$G$10 -> 105.9999943 | DC10: =11*$G$10 -> 116.5999937 | DM10: =12*$G$10 -> 127.1999931 | DW10: =13*$G$10 -> 137.7999926 | EG10: =14*$G$10 -> 148.399992 | EQ10: =15*$G$10 -> 158.9999914 | FA10: =16*$G$10 -> 169.5999908 | FK10: =17*$G$10 -> 180.1999903 | FU10: =18*$G$10 -> 190.7999897 | GE10: =19*$G$10 -> 201.3999891 | GO10: =20*$G$10 -> 211.9999886
A11: 1 | B11: Logic Delay | E11: 1 | F11: =E11 -> 1 | IP11: 3 | IQ11: 3
A12: =A11+1 -> 2 | B12: 010-GEO Station Load Delay Reference | E12: 69.8 | F12: =E12+F11 -> 70.8 | IP12: 5
A13: =A12+1 -> 3 | B13: ROBOT WELD | DY13: 2 | IP13: 2 | IQ13: 2
A14: =A13+1 -> 4 | B14: Robot V01AR24 pounce | E14: 0.9 | F14: =F12+E14 -> 71.7 | DY14: 2 | IP14: 4 | IQ14: 2
A15: =A14+1 -> 5 | B15: Robot V01AR24 welds 2 spots Dash LH (RCS) | E15: 8.7 | F15: =E15+F14 -> 80.4 | DY15: 2 | IP15: 4 | IQ15: 2
A16: =A15+1 -> 6 | B16: Robot V01AR24 welds 12 spots Geo RH (RCS) | E16: 34.64 | F16: =E16+F15 -> 115.04 | DY16: 2 | IP16: 4 | IQ16: 4
A17: 7 | B17: Robot V01AR24 welds 2 spots Dash RH (RCS) | E17: 7.78 | F17: 122.82 | IP17: 4 | IQ17: 4
A18: 8 | B18: Robot V01AR24 welds 13 spots Geo LH (RCS) | E18: 36.4 | F18: 159.22 | IP18: 4
A19: 9 | B19: Robot V01AR24 moves to changer / tip dress | E19: 3 | F19: 162.22 | IP19: 4
A20: 10 | B20: Robot V01AR24 Tip dress after every 2nd body | E20: 7.5 | F20: 169.72 | IP20: 3
A21: 11 | B21: Robot V01AR24 returns home | E21: 0.9 | F21: 170.62 | IP21: 4
A22: 12 | DY22: 2 | IP22: 4 | IQ22: 4
A23: 13 | B23: Robot V01AR25 pounce | E23: 1.01 | F23: =F12+E23 -> 71.81 | DY23: 2 | IP23: 4 | IQ23: 2
A24: 14 | B24: Robot V01AR25 welds 28 spots (RCS) | E24: 90.6 | F24: =F23+E24 -> 162.41 | IP24: 4
A25: 15 | B25: Robot V01AR25 moves to changer / tip dress | E25: 3 | F25: =F24+E25 -> 165.41 | IP25: 4
A26: 16 | B26: Robot V01AR25 Tip dress after every 2nd body | E26: 7.5 | F26: =F25+E26 -> 172.91 | IP26: 3
A27: 17 | B27: Robot V01AR25 returns home | E27: 1.14 | F27: =F26+E27 -> 174.05 | IP27: 4
A28: 18
A29: 19 | B29: Robot V01AR42 Moves into pick Sta 020 | E29: 0.75 | F29: =E29+F24 -> 163.16 | IP29: 4
A30: 20 | B30: Robot V01AR42 pick in dash upper assembly | E30: 4.86 | F30: =E30+F29 -> 168.02 | IP30: 4
A31: 21 | B31: Robot V01AR42-MH Clamps close on dash upper assembly | C31: UQ 1.1 TO UQ 1.4 UQ 5.1 TO UQ 5.4 | E31: 1 | F31: 169.02 | IP31: 3
A32: 22 | B32: 020-GEO tooilng clamps open | C32: UQ 8.1 UQ 8.2 UQ 9.1 TO UQ 9.5 | E32: 1 | F32: 170.02 | IP32: 3
A33: 23 | B33: Robot V01AR42 pick clear | E33: 3.94 | F33: 173.96 | IP33: 4
A34: 24 | B34: Robot V01AR42 pick in LH assembly | E34: 2.56 | F34: 176.52 | IP34: 4
A35: 25 | B35: Clamps close on LH Assembly | C35: UQ 4.1 UQ 4.2 | E35: 1 | F35: 177.52 | IP35: 3
A36: 26 | B36: 020-GEO tooilng clamps open | C36: UQ 3.1 UQ 3.2 UQ 3.3 | E36: 1 | F36: 178.52 | IP36: 3
A37: 27 | B37: Robot V01AR42 pick clear | E37: 2.49 | F37: 181.01 | IP37: 4
A38: 28 | B38: Robot V01AR42 pick in RH assembly | E38: 3.6 | F38: 184.61 | IP38: 4
A39: 29 | B39: Clamp close on RH assembly | C39: UQ 3.1 UQ 3.2 | E39: 1 | F39: 185.61 | IP39: 3
A40: 30 | B40: 020-GEO tooilng clamps open | C40: UQ 4.1 UQ 4.2 UQ 4.3 | E40: 1 | F40: 186.61 | IP40: 3
A41: 31 | B41: Robot V01AR42 pick clear | E41: 4.5 | F41: 191.11 | IP41: 4
A42: 32 | B42: Robot V01AR42 pick windshield assembly | E42: 3.46 | F42: 194.57 | IP42: 4
A43: 33 | B43: MH clamp close | C43: UQ 2.1 UQ 2.2 | E43: 1.5 | F43: 196.07 | IP43: 3
A44: 34 | B44: 020-GEO tooilng clamps open | C44: UQ 11.1 UQ 11.2 UQ 11.3 | E44: 1 | F44: 197.07 | IP44: 3
A45: 35 | B45: Robot V01AR42 pick clear | E45: 4.55 | F45: 201.62 | IP45: 4
A46: 36 | B46: 020-GEO tooilng re-turns to load | E46: 9 | F46: 210.62 | IP46: 3
B52: (RCS Timing)
B53: Total Cycle Time | F53: =MAX(F13:F51) -> 210.62
B54: Estimated Walk Total | D54: =SUM(D13:D53) -> 0 | IQ54: 2
B55: Jobs Per Hour | F55: =SUM(3600/F53) -> 17.09239388

Sheet STA 020 PED
B2: Man and Machine Motions | AB2: Operator | CR2: =Cover!B13 -> VOLVO
B3: PRELIMINARY TIMING ESTIMATES | AB3: Machine | CR3: =Cover!B15 -> 6700
AB4: Robot | CR4: =Cover!B17 -> FIREWALL
F5: =Q8-AP8 -> -30.45 | AB5: Operator Wait | CR5: =Cover!B19 -> Dublin Virginia
A6: TOOL DESCRIPTION: | E6: Hours | F6: REQUIRED | Q6: TOTAL TIME | AP6: TOTAL TIME | BO6: TOTAL MILES WALKED | DC6: ROBOT | DW6: OPERATOR TIME | GE6: MACHINE
A7: =RIGHT(CELL("filename",D2),LEN(CELL("filename",D2))-FIND("]",CELL("filename",D2))) -> STA 020 PED | E7: /Shift | F7: JPH | Q7: AVAILABLE | AP7: UTILIZED | BO7: APPROX. 8 HR SHIFT | DC7: TIME | DW7: WORK | EQ7: WAIT | FK7: % UTIL. | GE7: TIME
E8: 7.4 | F8: =3600/Q8 -> 16.98113208 | Q8: =Cover!B25 -> 212 | AP8: =F73 -> 242.45 | BO8: N/A | DC8: 221.65 | DW8: N/A | EQ8: N/A | FK8: N/A | GE8: 18.8
A9: step | B9: STATION | C9: Cyl. | D9: WALK | F9: RUN | CW9: CYCLE TIME (seconds)
A10: # | B10: DESCRIPTION | C10: Num. | D10: DIST. | E10: SEC | F10: SEC | G10: 12.5 | Q10: =2*$G$10 -> 25 | AA10: =3*$G$10 -> 37.5 | AK10: =4*$G$10 -> 50 | AU10: =5*$G$10 -> 62.5 | BE10: =6*$G$10 -> 75 | BO10: =7*$G$10 -> 87.5 | BY10: =8*$G$10 -> 100 | CI10: =9*$G$10 -> 112.5 | CS10: =10*$G$10 -> 125 | DC10: =11*$G$10 -> 137.5 | DM10: =12*$G$10 -> 150 | DW10: =13*$G$10 -> 162.5 | EG10: =14*$G$10 -> 175 | EQ10: =15*$G$10 -> 187.5 | FA10: =16*$G$10 -> 200 | FK10: =17*$G$10 -> 212.5 | FU10: =18*$G$10 -> 225 | GE10: =19*$G$10 -> 237.5 | GO10: =20*$G$10 -> 250
A11: 1 | B11: Logic Delay | E11: 1 | F11: =E11 -> 1 | IP11: 5 | IQ11: 3
A12: =A11+1 -> 2 | B12: ROBOT LOAD | IP12: 2
A13: 3 | B13: Robot V01AR42 Moves into pick Sta 020 | E13: 0.75 | F13: =F11+E13 -> 1.75 | IP13: 4
A14: 4 | B14: Robot V01AR42 pick in dash upper assembly | E14: 4.86 | F14: =F13+E14 -> 6.61 | IP14: 4
A15: 5 | B15: Robot V01AR42-MH Clamps close on dash upper assembly | C15: UQ 1.1 TO UQ 1.4 UQ 5.1 TO UQ 5.4 | E15: 1 | F15: =E15+F14 -> 7.61 | IP15: 3
A16: 6 | B16: 020-GEO tooilng clamps open | C16: UQ 8.1 UQ 8.2 UQ 9.1 TO UQ 9.5 | E16: 1 | F16: =E16+F15 -> 8.61 | IP16: 3
A17: 7 | B17: Robot V01AR42 pick clear | E17: 3.94 | F17: 12.55 | IP17: 4
A18: 8 | B18: Robot V01AR42 pick in LH assembly | E18: 2.56 | F18: 15.11 | IP18: 4
A19: 9 | B19: Clamps close on LH Assembly | C19: UQ 4.1 UQ 4.2 | E19: 1 | F19: 16.11 | IP19: 3
A20: 10 | B20: 020-GEO tooilng clamps open | C20: UQ 3.1 UQ 3.2 UQ 3.3 | E20: 1 | F20: 17.11 | IP20: 3
A21: 11 | B21: Robot V01AR42 pick clear | E21: 2.49 | F21: 19.6 | IP21: 4 | IQ21: 3
A22: 12 | B22: Robot V01AR42 pick in RH assembly | E22: 3.6 | F22: 23.2 | IP22: 4
A23: 13 | B23: Clamp close on RH assembly | C23: UQ 3.1 UQ 3.2 | E23: 1 | F23: 24.2 | IP23: 3
A24: 14 | B24: 020-GEO tooilng clamps open | C24: UQ 4.1 UQ 4.2 UQ 4.3 | E24: 1 | F24: 25.2 | IP24: 3
A25: 15 | B25: Robot V01AR42 pick clear | E25: 4.5 | F25: 29.7 | IP25: 4
A26: 16 | B26: Robot V01AR42 pick windshield assembly | E26: 3.46 | F26: 33.16 | IP26: 4
A27: 17 | B27: MH clamp close | C27: UQ 2.1 UQ 2.2 | E27: 1.5 | F27: 34.66 | IP27: 3
A28: 18 | B28: 020-GEO tooilng clamps open | C28: UQ 11.1 UQ 11.2 UQ 11.3 | E28: 1 | F28: 35.66 | IP28: 3
A29: 19 | B29: Robot V01AR42 pick clear | E29: 4.55 | F29: 40.21 | IP29: 4
A30: 20 | B30: ROBOT PED WELD | IP30: 2
A31: 21 | B31: Robot V01AR42 ped pounce | E31: 1.96 | F31: =E31+F29 -> 42.17 | IP31: 4
A32: 22 | B32: PED respot LH assembly (RCS) | E32: 10.55 | F32: 52.72 | IP32: 4
A33: 23 | B33: PED respot upper dash1 assembly (RCS) | E33: 106.23 | F33: 158.95 | IP33: 4
A34: 24 | B34: PED respot RH assembly (RCS) | E34: 9.65 | F34: =F33+E34 -> 168.6 | IP34: 4
A35: 25 | B35: PED respot upper dash2 assembly (RCS) | E35: 29.42 | F35: =F34+E35 -> 198.02 | IP35: 4
A36: 26 | B36: Robot V01AR42 Clear ped | E36: 0.4 | F36: 198.42 | IP36: 4
A37: 27 | B37: ROBOT LOAD STA040 | IP37: 2
A38: 28 | B38: Robot V01AR11 Move to drop Sta 040 (REF)
A39: 29 | B39: Robot V01AR11 drop Firewall ASM from Sta030 (REF)
A40: 30 | B40: Geo Tooling (X&Z Clamps Close, Z movable backup extend) (REF) | C40: UQ 2.1 TO UQ 2.4 UQ 6.1 UQ 6.2
A41: 31 | B41: MH Firewall assembly clamp open (REF) | C41: UQ 1.1 TO UQ 1.6
A42: 32 | B42: Robot V01AR11 cleared for drop of Firewall ASM (REF)
A43: 33
A44: 34 | B44: Robot V01AR42 Move to drop Sta 040 | E44: 0.02 | F44: =F36+E44 -> 198.44 | IP44: 4
A45: 35 | B45: Robot V01AR42 drop in LH assembly | E45: 9.22 | F45: 207.66 | IP45: 4
A46: 36 | B46: Geo LH assembly clamp close | C46: UQ 4.1 TO UQ 4.6 | E46: 1 | F46: =E46+F45 -> 208.66 | IP46: 3
A47: 37 | B47: MH LH assembly clamp open | C47: UQ 3.1 UQ 3.2 | E47: 1 | F47: 209.66 | IP47: 3
A48: 38 | B48: Robot V01AR42 cleared for drop of LH assembly | E48: 1.04 | F48: =E48+F47 -> 210.7 | IP48: 4
A49: 39
A50: 40 | B50: Robot V01AR42 drop in RH assembly | E50: 0.63 | F50: =E50+F48 -> 211.33 | IP50: 4
A51: 41 | B51: Geo clamp close on RH assembly | C51: UQ 4.1 TO UQ 4.6 | E51: 1 | F51: 212.33 | IP51: 3
A52: 42 | B52: MH RH assembly clamp open | C52: UQ 4.1 UQ 4.2 | E52: 1 | F52: 213.33 | IP52: 3
A53: 43 | B53: Robot V01AR42 drop clear RH assembly | E53: 2.98 | F53: 216.31 | IP53: 4
A54: 44 | B54: Geo LH/RH assembly (Slide extend,clamp close) | C54: UQ 8.1 UQ 8.2 UQ 12.1 UQ 12.2 | E54: 1 | F54: 217.31 | IP54: 3
A55: 45
A56: 46 | B56: Robot V01AR42 drop in dash upper assembly | E56: 2.73 | F56: =E56+F54 -> 220.04 | IP56: 4
A57: 47 | B57: Geo Tooling dash assembly (Shot pin extend, X & Z clamps close) | C57: UQ 1.1 TO UQ 1.3 UQ 5.1 TO UQ 5.4 | E57: 1 | F57: 221.04 | IP57: 3
A58: 48 | B58: MH clamps open for dash upper assembly | C58: UQ 1.1 TO UQ 1.5 UQ 5.1 TO UQ 5.4 | E58: 1 | F58: 222.04 | IP58: 3
A59: 49 | B59: Robot V01AR42 drop clear dash upper assembly | E59: 4.33 | F59: 226.37 | IP59: 4
A60: 50 | B60: GEO Tooling (Z clamps close) | C60: UQ 9.1 UQ 9.2 | E60: 1.3 | F60: =E60+F59 -> 227.67 | IP60: 3
A61: 51
A62: 52 | B62: Robot V01AR42 drop in windshield assembly | E62: 4.26 | F62: =E62+F60 -> 231.93 | IP62: 4
A63: 53 | B63: Geo Tooling winshield assembly (Shot pin extend, Clamps close) | C63: UQ 3.1 TO UQ 3.3 UQ 13.1 UQ 13.2 | E63: 1 | F63: 232.93 | IP63: 3
A64: 54 | B64: MH windshield assembly clamp open | C64: UQ 2.1 UQ 2.2 | E64: 1 | F64: 233.93 | IP64: 3
A65: 55 | B65: Robot V01AR42 drop clear windshield assembly | E65: 5.66 | F65: 239.59 | IP65: 4
A66: 56 | B66: Geo Tooling winshield assembly (Slide extend, Clamps close) | C66: UQ 11.1 UQ 7.1 UQ 7.2 UQ 10.1 UQ 10.2 | E66: 1 | F66: 240.59 | IP66: 3
A67: 57 | B67: Robot V01AR42 returns home | E67: 1.86 | F67: 242.45 | IP67: 4
IP70: 3
B72: (RCS Timing)
B73: Total Cycle Time | F73: =MAX(F12:F70) -> 242.45
B74: Estimated Walk Total | D74: =SUM(D12:D73) -> 0 | IQ74: 2
B75: Jobs Per Hour | F75: =SUM(3600/F73) -> 14.84842236

Sheet STA 030 RESPOT
B2: Man and Machine Motions | AB2: Operator | CR2: =Cover!B13 -> VOLVO
B3: PRELIMINARY TIMING ESTIMATES | AB3: Machine | CR3: =Cover!B15 -> 6700
AB4: Robot | CR4: =Cover!B17 -> FIREWALL
F5: =Q8-AP8 -> 59.91 | AB5: Operator Wait | CR5: =Cover!B19 -> Dublin Virginia
A6: TOOL DESCRIPTION: | E6: Hours | F6: REQUIRED | Q6: TOTAL TIME | AP6: TOTAL TIME | BO6: TOTAL MILES WALKED | DC6: ROBOT | DW6: OPERATOR TIME | GE6: MACHINE
A7: =RIGHT(CELL("filename",D2),LEN(CELL("filename",D2))-FIND("]",CELL("filename",D2))) -> STA 030 RESPOT | E7: /Shift | F7: JPH | Q7: AVAILABLE | AP7: UTILIZED | BO7: APPROX. 8 HR SHIFT | DC7: TIME | DW7: WORK | EQ7: WAIT | FK7: % UTIL. | GE7: TIME
E8: 7.4 | F8: =3600/Q8 -> 16.98113208 | Q8: =Cover!B25 -> 212 | AP8: =F36 -> 152.09 | BO8: N/A | DC8: 144.65 | DW8: 2 | EQ8: 210 | FK8: 0.9433962107 | GE8: 6.5
A9: step | B9: STATION | C9: Cyl. | D9: WALK | F9: RUN | CW9: CYCLE TIME (seconds)
A10: # | B10: DESCRIPTION | C10: Num. | D10: DIST. | E10: SEC | F10: SEC | G10: 10.59999943 | Q10: =2*$G$10 -> 21.19999886 | AA10: =3*$G$10 -> 31.79999828 | AK10: =4*$G$10 -> 42.39999771 | AU10: =5*$G$10 -> 52.99999714 | BE10: =6*$G$10 -> 63.59999657 | BO10: =7*$G$10 -> 74.19999599 | BY10: =8*$G$10 -> 84.79999542 | CI10: =9*$G$10 -> 95.39999485 | CS10: =10*$G$10 -> 105.9999943 | DC10: =11*$G$10 -> 116.5999937 | DM10: =12*$G$10 -> 127.1999931 | DW10: =13*$G$10 -> 137.7999926 | EG10: =14*$G$10 -> 148.399992 | EQ10: =15*$G$10 -> 158.9999914 | FA10: =16*$G$10 -> 169.5999908 | FK10: =17*$G$10 -> 180.1999903 | FU10: =18*$G$10 -> 190.7999897 | GE10: =19*$G$10 -> 201.3999891 | GO10: =20*$G$10 -> 211.9999886
A11: 1 | B11: Logic Delay | E11: 1 | F11: =E11 -> 1 | IP11: 5
A12: =A11+1 -> 2 | B12: ROBOT WELD | IP12: 2
A13: 3 | B13: Robot V01AR41 drop into Sta030 | E13: 9.01 | F13: =E13+F11 -> 10.01 | IP13: 4
A14: 4 | B14: 030-Respot tooling Z direction 2 Clamps Close | C14: UQ 3.1 UQ 3.2 | E14: 1 | F14: =E14+F13 -> 11.01 | IP14: 3
A15: 5 | B15: 030-Respot tooling X & Z direction Clamps Close | C15: UQ 1.1 TO UQ 1.6 UQ 2.1 UQ 2.2 UQ 2.3 | E15: 1 | F15: 12.01 | IP15: 3
A16: 6 | B16: Robot V01AR41-MH1 Pins Retracted | C16: UQ 1.1 UQ 1.2 | E16: 1 | F16: 13.01 | IP16: 3
A17: 7 | B17: Robot V01AR41-MH1 clamps open | C17: UQ 2.1 TO UQ 2.7 | E17: 1 | F17: 14.01 | IP17: 3
A18: 8 | B18: Robot V01AR41 drop clear | E18: 5.88 | F18: 19.89 | IP18: 4
A19: 9 | B19: Robot V01AR41 returns home | E19: 1.81 | F19: 21.7 | IP19: 4
A20: 10 | B20: Robot V01AR26 pounce | E20: 1.11 | F20: 22.81 | IP20: 4
A21: 11 | B21: Robot V01AR26 welds 43 spots (RCS) | E21: 111.93 | F21: 134.74 | IP21: 4
A22: 12 | B22: Robot V01AR26 moves to changer / tip dress | E22: 3 | F22: 137.74 | IP22: 4
A23: 13 | B23: Robot V01AR26 Tip dress after every 2nd body | E23: 7.5 | F23: 145.24 | IP23: 3
A24: 14 | B24: Robot V01AR26 returns home | E24: 2.06 | F24: =E24+F23 -> 147.3 | IP24: 4
A25: 15 | B25: ROBOT UNLOAD | DY25: 2 | IP25: 2 | IQ25: 2
A26: 16 | B26: Robot V01AR11 moves to pick | E26: 4.05 | F26: =E26+F21 -> 138.79 | IP26: 4
A27: 17 | B27: V01AR11-MH1 X & Z Clamps close | C27: UQ 1.1 TO UQ 1.6 | E27: 1.5 | F27: =E27+F26 -> 140.29 | DY27: 2 | IP27: 3 | IQ27: 4
A28: 18 | B28: 030-Respot tooling Z direction 2 Clamps Open | C28: UQ 3.1 UQ 3.2 | E28: 1 | F28: =E28+F27 -> 141.29 | IP28: 3
A29: 19 | B29: 030-Respot tooling X & Z direction Clamps Open | C29: UQ 1.1 TO UQ 1.6 UQ 2.1 UQ 2.2 UQ 2.3 | E29: 1 | F29: =E29+F28 -> 142.29 | IP29: 3
A30: 20 | B30: Robot V01AR11 clears pick moves on RTU | E30: 3.3 | F30: =E30+F29 -> 145.59 | IP30: 4 | IQ30: 4
A31: 21 | B31: Robot V01AR11 loads asm STA 040 | E31: 5.5 | F31: =E31+F30 -> 151.09 | IP31: 4
A32: 22 | B32: V01AR11-MH1 Clamps open | E32: 1 | F32: 152.09 | IP32: 3
A33: 23 | B33: V01AR11-MH1 Clear RTH | IQ33: 2
B35: (RCS Timing) | IQ35: 2
B36: Total Cycle Time | F36: =MAX(F12:F33) -> 152.09
B37: Estimated Walk Total | IQ37: 2
B38: Jobs Per Hour | F38: =SUM(3600/F36) -> 23.67019528

Sheet STA 040 GEO
B2: Man and Machine Motions | AB2: Operator | CR2: =Cover!B13 -> VOLVO
B3: PRELIMINARY TIMING ESTIMATES | AB3: Machine | CR3: =Cover!B15 -> 6700
AB4: Robot | CR4: =Cover!B17 -> FIREWALL
F5: =Q8-AP8 -> -12.79 | AB5: Operator Wait | CR5: =Cover!B19 -> Dublin Virginia
A6: TOOL DESCRIPTION: | E6: Hours | F6: REQUIRED | Q6: TOTAL TIME | AP6: TOTAL TIME | BO6: TOTAL MILES WALKED | DC6: ROBOT | DW6: OPERATOR TIME | GE6: MACHINE
A7: =RIGHT(CELL("filename",D2),LEN(CELL("filename",D2))-FIND("]",CELL("filename",D2))) -> STA 040 GEO | E7: /Shift | F7: JPH | Q7: AVAILABLE | AP7: UTILIZED | BO7: APPROX. 8 HR SHIFT | DC7: TIME | DW7: WORK | EQ7: WAIT | FK7: % UTIL. | GE7: TIME
E8: 7.4 | F8: =3600/Q8 -> 16.98113208 | Q8: =Cover!B25 -> 212 | AP8: 224.79 | BO8: N/A | DC8: 443.8 | DW8: N/A | EQ8: N/A | FK8: N/A | GE8: 55.5
A9: step | B9: STATION | C9: Cyl. | D9: WALK | F9: RUN | CW9: CYCLE TIME (seconds)
A10: # | B10: DESCRIPTION | C10: Num. | D10: DIST. | E10: SEC | F10: SEC | G10: 13 | Q10: =2*$G$10 -> 26 | AA10: =3*$G$10 -> 39 | AK10: =4*$G$10 -> 52 | AU10: =5*$G$10 -> 65 | BE10: =6*$G$10 -> 78 | BO10: =7*$G$10 -> 91 | BY10: =8*$G$10 -> 104 | CI10: =9*$G$10 -> 117 | CS10: =10*$G$10 -> 130 | DC10: =11*$G$10 -> 143 | DM10: =12*$G$10 -> 156 | DW10: =13*$G$10 -> 169 | EG10: =14*$G$10 -> 182 | EQ10: =15*$G$10 -> 195 | FA10: =16*$G$10 -> 208 | FK10: =17*$G$10 -> 221 | FU10: =18*$G$10 -> 234 | GE10: =19*$G$10 -> 247 | GO10: =20*$G$10 -> 260
A11: 1 | B11: Logic Delay | E11: 1 | F11: =E11 -> 1 | IP11: 5
A12: =A11+1 -> 2 | B12: ROBOT WELD | IP12: 2
A13: =A12+1 -> 3 | B13: Robot V01AR11 Move to drop Sta 040 | E13: 1.5 | F13: =E13+F11 -> 2.5 | IP13: 4
A14: =A13+1 -> 4 | B14: Robot V01AR11 drop Firewall ASM from Sta030 | E14: 5.5 | F14: =E14+F13 -> 8 | IP14: 4
A15: =A14+1 -> 5 | B15: Geo Tooling (X&Z Clamps Close, Z movable backup extend) | C15: UQ 2.1 TO UQ 2.4 UQ 6.1 UQ 6.2 | E15: 1 | F15: =E15+F14 -> 9 | IP15: 3
A16: =A15+1 -> 6 | B16: MH Firewall assembly clamp open | C16: UQ 1.1 TO UQ 1.6 | E16: 1 | F16: =E16+F15 -> 10 | IP16: 3
A17: =A16+1 -> 7 | B17: Robot V01AR11 cleared for drop of Firewall ASM | E17: 1.8 | F17: =E17+F16 -> 11.8 | IP17: 4
IP18: 2
A19: =A18+1 -> 1 | B19: Robot V01AR42 Move to drop Sta 040 | E19: 0.02 | F19: =E19+F17 -> 11.82 | IP19: 4
A20: =A19+1 -> 2 | B20: Robot V01AR42 drop in LH assembly | E20: 9.22 | F20: =E20+F19 -> 21.04 | IP20: 4
A21: =A20+1 -> 3 | B21: Geo LH assembly clamp close | C21: UQ 4.1 TO UQ 4.6 | E21: 1 | F21: 22.04 | IP21: 3
A22: =A21+1 -> 4 | B22: MH LH assembly clamp open | C22: UQ 3.1 UQ 3.2 | E22: 1 | F22: 23.04 | IP22: 3
A23: =A22+1 -> 5 | B23: Robot V01AR42 cleared for drop of LH assembly | E23: 1.04 | F23: 24.08 | IP23: 4
IP24: 2
A25: =A24+1 -> 1 | B25: Robot V01AR42 drop in RH assembly | E25: 0.63 | F25: =E25+F23 -> 24.71 | IP25: 4
A26: =A25+1 -> 2 | B26: Geo clamp close on RH assembly | C26: UQ 4.1 TO UQ 4.6 | E26: 1 | F26: 25.71 | IP26: 3
A27: =A26+1 -> 3 | B27: MH RH assembly clamp open | C27: UQ 4.1 UQ 4.2 | E27: 1 | F27: 26.71 | IP27: 3
A28: =A27+1 -> 4 | B28: Robot V01AR42 drop clear RH assembly | E28: 2.98 | F28: 29.69 | IP28: 4
A29: =A28+1 -> 5 | B29: Geo LH/RH assembly (Slide extend,clamp close) | C29: UQ 8.1 UQ 8.2 UQ 12.1 UQ 12.2 | E29: 1 | F29: 30.69 | IP29: 3
IP30: 2
A31: =A30+1 -> 1 | B31: Robot V01AR42 drop in dash upper assembly | E31: 2.73 | F31: =E31+F29 -> 33.42 | IP31: 4
A32: =A31+1 -> 2 | B32: Geo Tooling dash assembly (Shot pin extend, X & Z clamps close) | C32: UQ 1.1 TO UQ 1.3 UQ 5.1 TO UQ 5.4 | E32: 1 | F32: 34.42 | IP32: 3
A33: =A32+1 -> 3 | B33: MH clamps open for dash upper assembly | C33: UQ 1.1 TO UQ 1.5 UQ 5.1 TO UQ 5.4 | E33: 1 | F33: 35.42 | IP33: 3
A34: =A33+1 -> 4 | B34: Robot V01AR42 drop clear dash upper assembly | E34: 4.33 | F34: 39.75 | IP34: 4
A35: =A34+1 -> 5 | B35: GEO Tooling (Z clamps close) | C35: UQ 9.1 UQ 9.2 | E35: 1.3 | F35: 41.05 | IP35: 4
IP36: 2
A37: =A36+1 -> 1 | B37: Robot V01AR42 drop in windshield assembly | E37: 4.26 | F37: =E37+F35 -> 45.31 | IP37: 4
A38: =A37+1 -> 2 | B38: Geo Tooling winshield assembly (Shot pin extend, Clamps close) | C38: UQ 3.1 TO UQ 3.3 UQ 13.1 UQ 13.2 | E38: 1 | F38: 46.31 | IP38: 3
A39: =A38+1 -> 3 | B39: MH windshield assembly clamp open | C39: UQ 2.1 UQ 2.2 | E39: 1 | F39: 47.31 | IP39: 3
A40: =A39+1 -> 4 | B40: Robot V01AR42 drop clear windshield assembly | E40: 5.66 | F40: 52.97 | IP40: 4
A41: =A40+1 -> 5 | B41: Geo Tooling winshield assembly (Clamps close) | C41: UQ 7.1 UQ 7.2 UQ 10.1 UQ 10.2 | E41: 1 | F41: 53.97 | IP41: 3
A42: =A41+1 -> 6 | B42: Robot V01AR42 returns home | E42: 1.86 | F42: 55.83 | IP42: 4
A43: =A42+1 -> 7 | B43: ROBOT WELD | IP43: 2
A44: =A43+1 -> 8 | B44: Robot V01AR29 moves to pounce | E44: 2.7 | F44: =E44+F40 -> 55.67 | IP44: 4
A45: =A44+1 -> 9 | B45: Robot V01AR29 welds 17 spots (RCS) | E45: 38.1 | F45: =E45+F44 -> 93.77 | IP45: 4
A46: =A45+1 -> 10 | B46: Robot V01AR28 moves to pounce | E46: 4.71 | F46: =E46+F40 -> 57.68 | IP46: 4
A47: =A46+1 -> 11 | B47: Robot V01AR28 welds 17 spots (RCS) | E47: 33.23 | F47: =E47+F46 -> 90.91 | IP47: 4 | IQ47: 2
A48: =A47+1 -> 12 | B48: 040-GEO Windshield slide in | C48: UQ 11.1 | E48: 3 | F48: =E48+F47 -> 93.91 | IP48: 3
A49: =A48+1 -> 13 | B49: 040-GEO Clamps close | C49: UQ 10.1 UQ 10.2 | E49: 1 | F49: 94.91 | IP49: 3
A50: =A49+1 -> 14 | B50: Robot V01AR29 welds 14 spots (RCS) | E50: 38.06 | F50: =E50+F48 -> 131.97 | IP50: 4
A51: =A50+1 -> 15 | B51: Robot V01AR28 welds 14 spots (RCS) | E51: 52.18 | F51: =E51+F48 -> 146.09 | IP51: 4
A52: =A51+1 -> 16 | B52: 040-GEO Clamps open, shot pin retrace | C52: UQ 10.1 UQ 10.2 UQ 2.1 | E52: 1 | F52: =E52+F51 -> 147.09 | IP52: 3
A53: =A52+1 -> 17 | B53: 040-GEO Preloader slide-out | C53: UQ 11.1 | E53: 3 | F53: =E53+F52 -> 150.09 | IP53: 3
A54: =A53+1 -> 18 | B54: Robot V01AR29 welds 8 spots (RCS) | E54: 26.15 | F54: =E54+F53 -> 176.24 | IP54: 4
A55: =A54+1 -> 19 | B55: Robot V01AR29 moves to changer / tip dress | E55: 2 | F55: 178.24 | IP55: 4
A56: =A55+1 -> 20 | B56: Robot V01AR29 Tip dress after every 2nd body | E56: 8 | F56: 186.24 | IP56: 3
A57: =A56+1 -> 21 | B57: Robot V01AR29 return to home | E57: 2.66 | F57: 188.9 | IP57: 4
A58: =A57+1 -> 22 | B58: Robot V01AR28 welds 8 spots (RCS) | E58: 39.31 | F58: =E58+F71 -> 207.56 | IP58: 4
A59: =A58+1 -> 23 | B59: Robot V01AR28 moves to changer / tip dress | E59: 2 | F59: 209.56 | IP59: 4
A60: =A59+1 -> 24 | B60: Robot V01AR28 Tip dress after every 2nd body | E60: 7.5 | F60: 217.06 | IP60: 3
A61: =A60+1 -> 25 | B61: Robot V01AR28 returns home | E61: 3.22 | F61: 220.28 | IP61: 4
A62: 26 | IP62: 2
A63: 27 | B63: Robot V01AR27 moves pounce | E63: 1.67 | F63: =E63+F40 -> 54.64 | IP63: 4
A64: 28 | B64: Robot V01AR27 welds 20 spots C-gun (RCS) | E64: 51.18 | F64: =E64+F63 -> 105.82 | IP64: 4
A65: 29 | B65: Robot V01AR27 moves to changer / tip dress | E65: 2 | F65: =E65+F64 -> 107.82 | IP65: 4
A66: 30 | B66: Robot V01AR27 Tip dress after every 3rd body | E66: 5 | F66: 112.82 | IP66: 3
A67: 31 | B67: Robot V01AR27 drops C-gun | E67: 7.24 | F67: 120.06 | IP67: 4
A68: 32 | B68: Robot V01AR27 picks X-gun | E68: 7.27 | F68: 127.33 | IP68: 4
A69: 33 | B69: Robot V01AR27 welds 4 spots X-gun (RH) (RCS) | E69: 13.04 | F69: 140.37 | IP69: 4
A70: 34 | B70: Robot V01AR27 welds 4 spots X-gun (LH) (RCS) | E70: 11.31 | F70: 151.68 | IP70: 4
A71: 35 | B71: Robot V01AR27 welds 5 spots X-gun (PT2) (RCS) | E71: 18.16 | F71: =E71+F53 -> 168.25 | IP71: 4
A72: 36 | B72: Robot V01AR27 welds 5 spots X-gun (PT3) (RCS) | E72: 21.84 | F72: =E72+F54 -> 198.08 | IP72: 4
A73: 37 | B73: Robot V01AR27 moves to changer / tip dress | E73: 2 | F73: 200.08 | IP73: 4
A74: 38 | B74: Robot V01AR27 Tip dress after every 3rd body | E74: 5 | F74: 205.08 | IP74: 3
A75: 39 | B75: Robot V01AR27 drops X-gun | E75: 6.68 | F75: 211.76 | IP75: 4
A76: 40 | B76: Robot V01AR27 picks C-gun | E76: 4.65 | F76: 216.41 | IP76: 4
A77: 41 | B77: Robot V01AR27 returns to home | E77: 1.38 | F77: =E77+F76 -> 217.79 | IP77: 4
A78: 42 | IP78: 2
A79: 43 | B79: St040 Geo clamps open, Shot pin retract | C79: UQ 1.1 TO UQ 1.3 UQ 9.1 TO UQ 9.2 | E79: 1 | F79: =E79+F58 -> 208.56 | IP79: 3
A80: 44 | B80: St040 Geo clapms open, Slide retract | C80: UQ 4.1 UQ 4.6 UQ 8.1 UQ 8.2 UQ 12.1 UQ 12.2 | E80: 2 | F80: =E80+F79 -> 210.56 | IP80: 3
A81: 45 | B81: St040 Geo shot pin retract, clamps open | C81: UQ 3.1 TO UQ 3.3 UQ 13.1 UQ 13.2 | E81: 1 | F81: =E81+F80 -> 211.56 | IP81: 3
A82: =A81+1 -> 46 | B82: St040 Geo clamps open, slide retract | C82: UQ 10.1 UQ 10.2 UQ 11.1 | E82: 2 | F82: =E82+F80 -> 212.56 | IP82: 3
A83: 47 | B83: St040 Geo slide retarct, clamps close | C83: UQ 7.1 UQ 7.2 | E83: 2 | F83: 214.56 | IP83: 3
A84: 48
A85: 49 | B85: ROBOT UNLOAD | IP85: 2
A86: 50 | B86: Robot V01AR12 moves to pick | E86: 3.44 | F86: =E86+F83 -> 218 | IP86: 4
A87: 51 | B87: Robot V01AR12-MH1 Clamps close | E87: 1 | F87: =E87+F86 -> 219 | IP87: 3
A88: 52 | B88: St040 Geo clamps open,movable backup retarct | C88: UQ 2.1 TO UQ 2.4 UQ 5.1 TO UQ 5.4 UQ 6.1 UQ 6.2 | E88: 1 | F88: =E88+F87 -> 220 | IP88: 3
A89: 53 | B89: Robot V01AR12 clears drop | E89: 4.79 | F89: 224.79 | IP89: 4
IP94: 4
B95: (RCS Timing) | IQ95: 2
B96: Total Cycle Time | F96: =MAX(F12:F94) -> 224.79
B97: Estimated Walk Total | IQ97: 2
B98: Jobs Per Hour | F98: =SUM(3600/F96) -> 16.01494728

Sheet STA 050 RESPOT
B2: Man and Machine Motions | AB2: Operator | CR2: =Cover!B13 -> VOLVO
B3: PRELIMINARY TIMING ESTIMATES | AB3: Machine | CR3: =Cover!B15 -> 6700
AB4: Robot | CR4: =Cover!B17 -> FIREWALL
F5: =Q8-AP8 -> 15.98 | AB5: Operator Wait | CR5: =Cover!B19 -> Dublin Virginia
A6: TOOL DESCRIPTION: | E6: Hours | F6: REQUIRED | Q6: TOTAL TIME | AP6: TOTAL TIME | BO6: TOTAL MILES WALKED | DC6: ROBOT | DW6: OPERATOR TIME | GE6: MACHINE
A7: =RIGHT(CELL("filename",D2),LEN(CELL("filename",D2))-FIND("]",CELL("filename",D2))) -> STA 050 RESPOT | E7: /Shift | F7: JPH | Q7: AVAILABLE | AP7: UTILIZED | BO7: APPROX. 8 HR SHIFT | DC7: TIME | DW7: WORK | EQ7: WAIT | FK7: % UTIL. | GE7: TIME
E8: 7.4 | F8: =3600/Q8 -> 16.98113208 | Q8: =Cover!B25 -> 212 | AP8: =F58 -> 196.02 | BO8: N/A | DC8: 512.26 | DW8: N/A | EQ8: N/A | FK8: N/A | GE8: 5
A9: step | B9: STATION | C9: Cyl. | D9: WALK | F9: RUN | CW9: CYCLE TIME (seconds)
A10: # | B10: DESCRIPTION | C10: Num. | D10: DIST. | E10: SEC | F10: SEC | G10: 10.59999943 | Q10: =2*$G$10 -> 21.19999886 | AA10: =3*$G$10 -> 31.79999828 | AK10: =4*$G$10 -> 42.39999771 | AU10: =5*$G$10 -> 52.99999714 | BE10: =6*$G$10 -> 63.59999657 | BO10: =7*$G$10 -> 74.19999599 | BY10: =8*$G$10 -> 84.79999542 | CI10: =9*$G$10 -> 95.39999485 | CS10: =10*$G$10 -> 105.9999943 | DC10: =11*$G$10 -> 116.5999937 | DM10: =12*$G$10 -> 127.1999931 | DW10: =13*$G$10 -> 137.7999926 | EG10: =14*$G$10 -> 148.399992 | EQ10: =15*$G$10 -> 158.9999914 | FA10: =16*$G$10 -> 169.5999908 | FK10: =17*$G$10 -> 180.1999903 | FU10: =18*$G$10 -> 190.7999897 | GE10: =19*$G$10 -> 201.3999891 | GO10: =20*$G$10 -> 211.9999886
A11: 1 | B11: Logic Delay | E11: 1.25 | F11: =E11 -> 1.25 | IP11: 5
A12: =A11+1 -> 2 | B12: ROBOT LOAD 050
A13: =A12+1 -> 3 | B13: Robot V01AR12 moves to drop | E13: 3.44 | F13: =E13+F11 -> 4.69 | IP13: 4
A14: 4 | B14: 050-RS Tooling Clamps Close | C14: UQ 1.1 TO UQ 1.5 UQ 2.1 TO UQ 2.4 | E14: 1 | F14: =E14+F13 -> 5.69 | IP14: 3
A15: 5 | B15: Robot V01AR12-MH1 Clamps Open | C15: UQ 2.1 TO UQ 2.4 | E15: 1 | F15: =E15+F14 -> 6.69 | IP15: 3
A16: 6 | B16: Robot V01AR12 clears drop | E16: 4.79 | F16: =E16+F15 -> 11.48 | IP16: 4
A17: 7 | B17: Robot V01AR12 returns to home | E17: 1.14 | F17: 12.62 | IP17: 4
A18: 8
A19: 9 | B19: ROBOT WELD | IP19: 2
A20: 10 | B20: Robot V01AR213 moves to pounce | E20: 1.11 | F20: =E20+F16 -> 12.59 | IP20: 4
A21: 11 | B21: Robot V01AR213 welds 24 spots C-gun (RCS) | E21: 61.27 | F21: =E21+F17 -> 73.89 | IP21: 4
A22: 12 | B22: Robot V01AR213 moves to changer / tip dress | E22: 2 | F22: =E22+F21 -> 75.89 | IP22: 4
A23: 13 | B23: Robot V01AR213 Tip dress after every 3rd body | E23: 5 | F23: 80.89 | IP23: 3
A24: 14 | B24: Robot V01AR213 drops C-gun | E24: 5.67 | F24: 86.56 | IP24: 3
A25: 15 | B25: Robot V01AR213 picks X-gun | E25: 4.8 | F25: 91.36 | IP25: 4
A26: 16 | B26: Robot V01AR213 welds 23 spots X-gun (RCS) | E26: 64.26 | F26: 155.62 | IP26: 4
A27: 17 | B27: Robot V01AR213 moves to changer / tip dress | E27: 2 | F27: 157.62 | IP27: 4
A28: 18 | B28: Robot V01AR213 Tip dress after every 3rd body | E28: 5 | F28: 162.62 | IP28: 3
A29: 19 | B29: Robot V01AR213 drops X-gun | E29: 5.45 | F29: 168.07 | IP29: 4
A30: 20 | B30: Robot V01AR213 picks C-gun | E30: 7.97 | F30: 176.04 | IP30: 4
A31: 21 | B31: Robot V01AR213 returns to home | E31: 0.9 | F31: =E31+F30 -> 176.94 | IP31: 4
A32: 22 | DY32: 2 | IP32: 2 | IQ32: 2
A33: 23 | B33: Robot V01AR211 moves to pounce | E33: 0.7 | F33: =E33+F16 -> 12.18 | DY33: 2 | IP33: 4 | IQ33: 2
A34: 24 | B34: Robot V01AR211 welds 60 spots (RCS) | E34: 152.52 | F34: =E34+F33 -> 164.7 | DY34: 2 | IP34: 4 | IQ34: 4
A35: 25 | B35: Robot V01AR211 moves to changer / tip dress | E35: 2 | F35: =E35+F34 -> 166.7 | IP35: 4
A36: 26 | B36: Robot V01AR211 Tip dress after every body | E36: 10 | F36: 176.7 | IP36: 3
A37: 27 | B37: Robot V01AR211 returns to home | E37: 1.16 | F37: 177.86 | IP37: 4 | IQ37: 4
A38: 28 | IP38: 2
A39: 29 | B39: Robot V01AR212 moves pounce | E39: 1.4 | F39: =E39+F16 -> 12.88 | DY39: 2 | IP39: 4 | IQ39: 4
A40: 30 | B40: Robot V01AR212 welds 24 spots C-gun (RCS) | E40: 69.77 | F40: =E40+F39 -> 82.65 | IP40: 4 | IQ40: 4
A41: 31 | B41: Robot V01AR212 moves to changer / tip dress | E41: 2 | F41: =E41+F40 -> 84.65 | IP41: 4
A42: 32 | B42: Robot V01AR212 Tip dress after every 3rd body | E42: 5 | F42: 89.65 | IP42: 3
A43: 33 | B43: Robot V01AR212 drops C-gun | E43: 8.91 | F43: 98.56 | IP43: 4
A44: 34 | B44: Robot V01AR212 picks X-gun | E44: 6.66 | F44: 105.22 | IP44: 4
A45: 35 | B45: Robot V01AR212 welds 23 spots X-gun (RCS) | E45: 66.1 | F45: 171.32 | DY45: 2 | IP45: 4 | IQ45: 4
A46: 36 | B46: Robot V01AR212 moves to changer / tip dress | E46: 2 | F46: 173.32 | IP46: 4
A47: 37 | B47: Robot V01AR212 Tip dress after every 3rd body | E47: 5 | F47: 178.32 | IP47: 3
A48: 38 | B48: Robot V01AR212 drops X-gun | E48: 8.69 | F48: 187.01 | IP48: 4 | IQ48: 2
A49: 39 | B49: Robot V01AR212 picks C-gun | E49: 6.88 | F49: 193.89 | IP49: 4
A50: 40 | B50: Robot V01AR212 returns to home | E50: 2.13 | F50: 196.02 | IP50: 4
A51: 41 | B51: ROBOT UNLOAD | IP51: 2
A52: 42 | B52: Robot V01AR13 pick from 050-RS | E52: 4.69 | F52: =E52+F45 -> 176.01 | IP52: 4
A53: 43 | B53: Robot V01AR13-MH1 Clamps Close | C53: UQ 1.1 TO UQ 1.5 UQ 2.1 TO UQ 2.4 | E53: 1.5 | F53: =E53+F52 -> 177.51 | IP53: 3
A54: 44 | B54: 050-RS Tool Clamps Open | C54: UQ 1.1 TO UQ 1.5 UQ 2.1 TO UQ 2.4 | E54: 1 | F54: =E54+F53 -> 178.51 | IP54: 3
A55: 45 | B55: Robot V01AR13 clear pick | E55: 5.83 | F55: 184.34 | IP55: 4
B57: (RCS Timing) | IQ57: 2
B58: Total Cycle Time | F58: =MAX(F19:F55) -> 196.02
B59: Estimated Walk Total | IQ59: 2
B60: Jobs Per Hour | F60: =SUM(3600/F58) -> 18.36547291

Sheet STA 060 Thru 080
B2: Man and Machine Motions | AB2: Operator | CR2: =Cover!B13 -> VOLVO
B3: PRELIMINARY TIMING ESTIMATES | AB3: Machine | CR3: =Cover!B15 -> 6700
AB4: Robot | CR4: =Cover!B17 -> FIREWALL
F5: =Q8-AP8 -> 0 | AB5: Operator Wait | CR5: =Cover!B19 -> Dublin Virginia
A6: TOOL DESCRIPTION: | E6: Hours | F6: REQUIRED | Q6: TOTAL TIME | AP6: TOTAL TIME | BO6: TOTAL MILES WALKED | DC6: ROBOT | DW6: OPERATOR TIME | GE6: MACHINE
A7: =RIGHT(CELL("filename",D2),LEN(CELL("filename",D2))-FIND("]",CELL("filename",D2))) -> STA 060 Thru 080 | E7: /Shift | F7: JPH | Q7: AVAILABLE | AP7: UTILIZED | BO7: APPROX. 8 HR SHIFT | DC7: TIME | DW7: WORK | EQ7: WAIT | FK7: % UTIL. | GE7: TIME
E8: 7.4 | F8: =3600/Q8 -> 16.98113208 | Q8: =Cover!B25 -> 212 | AP8: 212 | BO8: N/A | DC8: 451.53 | DW8: N/A | EQ8: N/A | FK8: N/A | GE8: 32.83
A9: step | B9: STATION | C9: Cyl. | D9: WALK | F9: RUN | CW9: CYCLE TIME (seconds)
A10: # | B10: DESCRIPTION | C10: Num. | D10: DIST. | E10: SEC | F10: SEC | G10: 12.5 | Q10: =2*$G$10 -> 25 | AA10: =3*$G$10 -> 37.5 | AK10: =4*$G$10 -> 50 | AU10: =5*$G$10 -> 62.5 | BE10: =6*$G$10 -> 75 | BO10: =7*$G$10 -> 87.5 | BY10: =8*$G$10 -> 100 | CI10: =9*$G$10 -> 112.5 | CS10: =10*$G$10 -> 125 | DC10: =11*$G$10 -> 137.5 | DM10: =12*$G$10 -> 150 | DW10: =13*$G$10 -> 162.5 | EG10: =14*$G$10 -> 175 | EQ10: =15*$G$10 -> 187.5 | FA10: =16*$G$10 -> 200 | FK10: =17*$G$10 -> 212.5 | FU10: =18*$G$10 -> 225 | GE10: =19*$G$10 -> 237.5 | GO10: =20*$G$10 -> 250
A11: 1 | B11: Logic Delay | F11: 1 | IQ11: 2
A12: =A11+1 -> 2 | B12: ROBOT LOAD STA60 | DY12: 2 | IP12: 2 | IQ12: 2
A13: 3 | B13: Robot V01AR13 moves to pounce | E13: 2.98 | F13: =E13 +F11 -> 3.98 | IP13: 4
A14: 4 | B14: Robot V01AR13 drops in | E14: 8.23 | F14: =E14 +F13 -> 12.21 | IP14: 4
A15: 5 | B15: 050-RS Tool Clamps Close | C15: UQ 1.1 TO UQ 1.3 | E15: 1 | F15: 13.21 | IP15: 3
A16: 6 | B16: 050-RS Tool Shot pins Extend | C16: UQ 3.1 UQ 3.2 | E16: 0.5 | F16: 13.71 | IP16: 3
A17: 7 | B17: Robot V01AR13-MH1 Clamps Open | C17: UQ 1.1 TO UQ 1.5 | E17: 1 | F17: 14.71 | IP17: 3
A18: 8 | B18: 050-RS Tool Clamps Close | C18: UQ 2.1 UQ 2.2 | E18: 1 | F18: 15.71 | IP18: 3
A19: 9 | B19: Robot V01AR13 clears drop | E19: 3.68 | F19: 19.39 | IP19: 4
A20: 10 | B20: Robot V01AR13 RTH | E20: 7.55 | F20: 26.94 | IP20: 4
A22: =A21+1 -> 1 | B22: ROBOT STUD WELD | IP22: 2
A23: =A22+1 -> 2 | B23: Robot V01AR51 moves to pounce | E23: 0.7 | F23: =E23 +F19 -> 20.09 | DY23: 2 | IP23: 4 | IQ23: 4
A24: =A23+1 -> 3 | B24: Robot V01AR51 welds 26 spots (stud type-1) (RCS) | E24: 118.94 | F24: =E24 +F23 -> 139.03 | DY24: 2 | IP24: 4 | IQ24: 4
A25: =A24+1 -> 4 | B25: Robot V01AR51 welds 3 spots (stud type-2) (RCS) | E25: 19.84 | F25: =E25 +F24 -> 158.87 | IP25: 4 | IQ25: 4
A26: =A25+1 -> 5 | B26: Robot V01AR51 returns to home | E26: 1.19 | F26: =E26 +F25 -> 160.06 | IP26: 4 | IQ26: 4
IP27: 2
A28: =A27+1 -> 1 | B28: Robot V01AR52 moves to pounce | E28: 1.21 | F28: =E28 +F19 -> 20.6 | DY28: 2 | IP28: 4 | IQ28: 4
A29: 2 | B29: Robot V01AR52 welds 21 spots (stud type-1) (RCS) | E29: 106.8 | F29: =E29+F28 -> 127.4 | IP29: 4 | IQ29: 4
A30: 3 | B30: Robot V01AR52 welds 4 spots (stud type-2) (RCS) | E30: 20.94 | F30: =E30 +F29 -> 148.34 | IP30: 4 | IQ30: 4
A31: 4 | B31: Robot V01AR52 returns to home | E31: 1.21 | F31: =E31+F30 -> 149.55 | IP31: 4 | IQ31: 4
A32: 5 | B32: ROBOT LOAD / UNLOAD | IP32: 2
A33: 6 | B33: Robot V01AR14 moves to pick from 060-DA | E33: 4.6 | F33: =E33+F25 -> 163.47 | IP33: 4
A34: 7 | B34: 050-RS Tool Clamps Close | C34: UQ 1.1 TO UQ 1.3 | E34: 1 | F34: =E34+F33 -> 164.47 | IP34: 3 | IQ34: 2
A35: 8 | B35: 050-RS Tool Shot pins Extend | C35: UQ 3.1 UQ 3.2 | E35: 1 | F35: =E35+F34 -> 165.47 | IP35: 3
A36: 9 | B36: Robot V01AR14-MH1 Clamps Close | C36: UQ 1.1 TO UQ 1.5 | E36: 1 | F36: =E36+F35 -> 166.47 | IP36: 3
A37: 10 | B37: Robot V01AR14 clears pick | E37: 3.22 | F37: =F36+E37 -> 169.69 | IP37: 3
A38: 11 | B38: Robot V01AR14 moves to drop to 070-VC | E38: 10.72 | F38: =F37+E38 -> 180.41 | IP38: 4 | IQ38: 2
A39: 12 | B39: 070-VC Fixture Clamps Close | E39: 1.5 | F39: =F38+E39 -> 181.91 | IP39: 3
A40: 13 | B40: Robot V01AR14-MH1 Clamps Open | C40: UQ 1.1 TO UQ 1.5 | E40: 1 | F40: 182.91 | IP40: 3
A41: 14 | B41: Robot V01AR14 clears drop | E41: 6.02 | F41: 188.93 | IP41: 4 | IQ41: 2
A43: =A42+1 -> 1 | B43: ROBOT VISION CHECK | IP43: 2
A44: 2 | B44: Robot V01AR191 moves in | E44: 1.5 | F44: =F41+E44 -> 190.43 | IP44: 4
A45: 3 | B45: Robot V01AR191 vision check | E45: 21.57 | F45: 212 | IP45: 4
A46: 4 | B46: WRAP VISION TIMING | E46: 27.93 | F46: =E46 -> 27.93 | IP46: 4
A47: 5 | B47: Robot V01AR191 Reposition | E47: 2 | F47: =F46+E47 -> 29.93 | IP47: 4
A48: 6 | B48: Robot V01AR191 vision check | E48: 49.5 | F48: 79.43 | IP48: 4
A49: 7 | B49: Robot V01AR191 clears | E49: 2 | F49: 81.43 | IP49: 4
A51: =A50+1 -> 1 | B51: ROBOT LOAD DATE SCRIBE | IP51: 2 | IQ51: 2
A52: 2 | B52: Robot V01AR14 moves to pounce | E52: 5.23 | F52: =F49+E52 -> 86.66 | IP52: 4
A53: 3 | B53: Robot V01AR14 moves to pick from 070-VC | E53: 5.71 | F53: 92.37 | IP53: 4
A54: 4 | B54: Robot V01AR14-MH Tooling clamps close | C54: UQ 1.1 TO UQ 1.5 | E54: 1.5 | F54: 93.87 | IP54: 3
A55: 5 | B55: 070-VC Tooling Clamps Open | E55: 1 | F55: 94.87 | IP55: 3
A56: 6 | B56: Robot V01AR14 clears pick | E56: 2.12 | F56: 96.99 | IP56: 4
A57: 7 | B57: Robot V01AR14 moves to 080-DS | E57: 3.18 | F57: 100.17 | IP57: 4
A58: 8 | B58: 080-DS Tooling Clamp close | C58: UQ 1.1 | E58: 0.5 | F58: 100.67 | IP58: 3
A59: 9 | B59: 080-DS Date stamp Apply | E59: 16.11 | F59: 116.78 | IP59: 3 | IQ59: 2
A60: 10 | B60: 080-DS Tooling Clamp open | C60: UQ 1.1 | E60: 0.5 | F60: 117.28 | IP60: 3
A61: =A60+1 -> 11 | B61: Robot V01AR14 moves to drop to conveyor | E61: 8.49 | F61: 125.77 | IP61: 4
A62: 12 | B62: Robot V01AR14-MH1 Clamps Open | C62: UQ 1.1 TO UQ 1.5 | E62: 1 | F62: 126.77 | IP62: 3
A63: 13 | B63: Robot V01AR14 clears drop | E63: 4.33 | F63: 131.1 | IP63: 4
A64: 14 | B64: Robot V01AR14 RTH | E64: 3.36 | F64: 134.46 | IP64: 4
IP65: 4
B68: (RCS Timing)
B69: Total Cycle Time | F69: =MAX(F11:F65) -> 212
B70: Estimated Walk Total | D70: =SUM(D11:D69) -> 0
B71: Jobs Per Hour | F71: =SUM(3600/F69) -> 16.98113208

Sheet Detail Time 1
B2: Man and Machine Motions | AB2: Operator | CR2: =Cover!B13 -> VOLVO
B3: PRELIMINARY TIMING ESTIMATES | AB3: Machine | CR3: =Cover!B15 -> 6700
AB4: Robot | CR4: =Cover!B17 -> FIREWALL
F5: =Q8-AP8 -> 212 | AB5: Operator Wait | CR5: =Cover!B19 -> Dublin Virginia
A6: TOOL DESCRIPTION: | E6: Hours | F6: REQUIRED | Q6: TOTAL TIME | AP6: TOTAL TIME | BO6: TOTAL MILES WALKED | DC6: ROBOT | DW6: OPERATOR TIME | GE6: MACHINE
A7: =RIGHT(CELL("filename",D2),LEN(CELL("filename",D2))-FIND("]",CELL("filename",D2))) -> Detail Time 1 | E7: /Shift | F7: JPH | Q7: AVAILABLE | AP7: UTILIZED | BO7: APPROX. 8 HR SHIFT | DC7: TIME | DW7: WORK | EQ7: WAIT | FK7: % UTIL. | GE7: TIME
E8: 7.4 | F8: =3600/Q8 -> 16.98113208 | Q8: =Cover!B25 -> 212 | AP8: 0 | BO8: N/A | DC8: N/A | DW8: N/A | EQ8: N/A | FK8: N/A | GE8: N/A
A9: step | B9: STATION | C9: Cyl. | D9: WALK | F9: RUN | CW9: CYCLE TIME (seconds)
A10: # | B10: DESCRIPTION | C10: Num. | D10: DIST. | E10: SEC | F10: SEC | G10: 15 | Q10: =2*$G$10 -> 30 | AA10: =3*$G$10 -> 45 | AK10: =4*$G$10 -> 60 | AU10: =5*$G$10 -> 75 | BE10: =6*$G$10 -> 90 | BO10: =7*$G$10 -> 105 | BY10: =8*$G$10 -> 120 | CI10: =9*$G$10 -> 135 | CS10: =10*$G$10 -> 150 | DC10: =11*$G$10 -> 165 | DM10: =12*$G$10 -> 180 | DW10: =13*$G$10 -> 195 | EG10: =14*$G$10 -> 210 | EQ10: =15*$G$10 -> 225 | FA10: =16*$G$10 -> 240 | FK10: =17*$G$10 -> 255 | FU10: =18*$G$10 -> 270 | GE10: =19*$G$10 -> 285 | GO10: =20*$G$10 -> 300
A11: 1 | F11: =E11 -> 0 | IQ11: 2
DY12: 2 | IQ12: 2
DY13: 2 | IQ13: 2
DY14: 2 | IQ14: 4
IQ15: 4
IQ16: 3
IQ36: 2
B37: Total Cycle Time | F37: =MAX(F11:F36) -> 0
B38: Estimated Walk Total | D38: =SUM(D11:D37) -> 0 | IQ38: 2
B39: Jobs Per Hour | F39: =SUM(3600/F37) -> 

Sheet Utilization
D8: Robot / Operator Utilization Matrix
A10: Customer: | B10: =Cover!B13 -> VOLVO
A12: Program: | B12: =Cover!B15 -> 6700
A14: Commodity: | B14: =Cover!B17 -> FIREWALL
A16: Over Cycle
B17: Station # | C17: Robot / Operator # | D17: System Cycle Time | E17: Proposed Cycle Time | F17: Utilization
D19: 0 | E19: 0 | F19: =E19/D19 -> 
D20: 0 | E20: 0
D21: 0 | E21: 0
D22: 0 | E22: 0
D23: 0 | E23: 0
D24: 0 | E24: 0
D25: 0 | E25: 0
D26: 0 | E26: 0
D27: 0 | E27: 0
D28: 0 | E28: 0
D29: 0 | E29: 0
D30: 0 | E30: 0
D31: 0 | E31: 0
D32: 0 | E32: 0
D33: 0 | E33: 0
D34: 0 | E34: 0
D35: 0 | E35: 0
D36: 0 | E36: 0
D37: 0 | E37: 0
D38: 0 | E38: 0
D39: 0 | E39: 0
D40: 0 | E40: 0 | F40: =E40/D40 -> 
D41: 0 | E41: 0 | F41: =E41/D41 -> 
D42: 0 | E42: 0 | F42: =E42/D42 -> 
D43: 0 | E43: 0 | F43: =E43/D43 -> 
D44: 0 | E44: 0 | F44: =E44/D44 -> 
D45: 0 | E45: 0
D46: 0 | E46: 0
D47: 0 | E47: 0
D48: 0 | E48: 0
D49: 0 | E49: 0
D50: 0 | E50: 0
D51: 0 | E51: 0
D52: 0 | E52: 0
D53: 0 | E53: 0
D54: 0 | E54: 0
D55: 0 | E55: 0
D56: 0 | E56: 0
D57: 0 | E57: 0
D58: 0 | E58: 0

Sheet timedata
B1: Robot Material Handling | C1: Secs | E1: Welding Robots Only | F1: Secs | H1: Handling parts | I1: Obtain | K1: Select | M1: Load | O1: Place | Q1: Manual Tools | T1: Fasteners | U1: Secs | W1: Very Small | X1: Small | Y1: Medium | Z1: Large | AA1: Very Large | AD1: Part Sizes
A2: 1 | B2: Logic delay | C2: 1 | D2: 1 | E2: Rotates approx. 45 degrees to | F2: 3 | H2: Very Small Part (No Walk) | I2: 0.7 | J2: 0.2 | K2: 0.7 | L2: 0.2 | M2: 1.1 | O2: 0.5 | Q2: Note that lines between jobs contain "blanks" (not empty) to make this list work | T2: Obtain power tool (and release after using) | U2: 4.5 | W2: Bolt | X2: Anchor | Y2: A-pillar | Z2: Bodyside | AA2: Cab Back | AD2: A-pillar | AE2: Medium
A3: =A2+1 -> 2 | B3: Rotates approx. 45 degrees to | C3: 3 | D3: =D2+1 -> 2 | E3: Rotates approx. 90 degrees to | F3: 4 | H3: Small Part | I3: 3.5 | J3: 0.9 | K3: 3.5 | L3: 0.9 | M3: 1.1 | O3: 0.5 | Q3: Tool Handling (nut runners) / fastener securing | T3: Obtain power tool (and release after using) if greater than 24" to reach fastener | U3: 5.3 | W3: J-clip | X3: Applicator | Y3: B-pillar | Z3: Dash Panel | AA3: Floor-pan | AD3: Anchor | AE3: Small
A4: 3 | B4: Rotates approx. 90 degrees to | C4: 4 | D4: 3 | E4: Rotates pounce to first weld | F4: 2 | H4: Medium Part | I4: 4.4 | K4: 5.3 | M4: 1.1 | O4: 1 | T4: Insert margin or flushness gauge into gap | U4: 1 | W4: J-nut | X4: Bar | Y4: Cowl side | Z4: Deck-lid | AA4: Rear Floor Pan | AD4: Applicator | AE4: Small
A5: 4 | B5: Rotates approx. 180 degrees to | C5: 6 | D5: 4 | E5: Articulate weld gun through welds on part in fixture | F5: 3 | H5: Large Part | I5: 5.4 | K5: 6.3 | M5: 2.7 | O5: 1.8 | Q5: Open / Close doors, decklids, or hoods | T5: Hand start nut, screw, or bolt | U5: 3 | W5: Locator | X5: Brace | Y5: Cowl top | Z5: Door | AA5: Underbody | AD5: B-pillar | AE5: Medium
A6: 5 | B6: Clamps on end effector extend, securing | C6: 1 | D6: 5 | E6: Repositions to weld in additional plane | F6: 3 | H6: Large Special | I6: 6.7 | K6: 7.6 | M6: 2.7 | O6: 1.8 | T6: Load nut, screw, or bolt to power tool | U6: 1.2 | W6: Nut | X6: Bracket | Y6: C-pillar | Z6: Door-opening-Panel | AD6: Bar | AE6: Small
A7: 6 | B7: Clamps on end effector retract, releasing | C7: 1 | D7: 6 | E7: Moves clear of fixture clamps | F7: 1.5 | H7: Very Large Part * V0 | I7: 17.5 | J7: V0 | K7: 18.4 | L7: V0 | M7: 1.7 | N7: V0 | O7: 0.5 | P7: V0 | Q7: Fit Closure Panels | T7: Secure nut, screw, or bolt using power tool | W7: Nut and bolt assembly | X7: Daub | Y7: D-pillar | Z7: Fender | AD7: Bodyside | AE7: Large
A8: 7 | B8: Articulates part through welds at PED Weld Stand | C8: 3 | D8: 7 | E8: Rotates clear of fixture | F8: 2.5 | H8: Very Large Part * F0 | I8: 12 | J8: F0 | K8: 12.9 | L8: F0 | M8: 1.7 | N8: F0 | O8: 0.5 | P8: F0 | W8: Nut and Washer Assembly | X8: Door-hinge | Y8: Front floor pan crossmember | Z8: Floor | AD8: Bolt | AE8: Very Small
A9: 8 | B9: Rotates clear of fixture | C9: 3 | D9: 8 | E9: Rotate home to pounce | F9: 2 | H9: Very Large Part * N0 | I9: 15.5 | J9: N0 | K9: 16.4 | L9: N0 | M9: 2 | N9: N0 | O9: 0.5 | P9: N0 | Q9: Use portable fixtures | T9: Tool Motor Type / per fastener times | U9: Torque | V9: Secs | W9: Palm button | X9: Fastener | Y9: Grille Opening Reinforcement | Z9: Frame rail | AD9: Brace | AE9: Small
A10: 9 | B10: Rotate to home | C10: 3 | D10: 9 | E10: Logic delay | F10: 1 | H10: Very Large Part * H0 | I10: 11.6 | J10: H0 | K10: 12.5 | L10: H0 | M10: 2 | N10: H0 | O10: 0.5 | P10: H0 | T10: N01-N05 | U10: 0.70-2.50 | V10: 2.5 | W10: Pot-rivet | X10: Header | Y10: Liftgate | Z10: Front Fender Body | AD10: Bracket | AE10: Small
A11: 10 | B11: Rotates to Pounce | C11: 2 | H11: Very Large Part * V1 | I11: 18.8 | J11: V1 | K11: 19.7 | L11: V1 | M11: 1.7 | N11: V1 | O11: 0.5 | P11: V1 | Q11: Manual clamping | T11: N1-N8 | U11: 2.51-20.00 | V11: 2.5 | W11: Push pin | X11: Nut and Plate assembly | Y11: Package Tray | Z11: Hood | AD11: C-pillar | AE11: Medium
A12: 11 | B12: Articulate and pick second part | C12: 5 | H12: Very Large Part * F1 | I12: 13.3 | J12: F1 | K12: 14.2 | L12: F1 | M12: 1.7 | N12: F1 | O12: 0.5 | P12: F1 | T12: N9-N11 | U12: 20.1-40.0 | V12: 4 | W12: Rivet | X12: Reinforcement | Y12: Pillar | Z12: Lower back panel s/a | AD12: Cab Back | AE12: Very Large
A13: 12 | B13: Articulate and set second part | C13: 5 | H13: Very Large Part * N1 | I13: 14.7 | J13: N1 | K13: 15.6 | L13: N1 | M13: 2 | N13: N1 | O13: 0.5 | P13: N1 | T13: N12-N14 | U13: 40.1-90.0 | V13: 5.9 | W13: Rivnut | X13: Teleauto ticket | Y13: Plenum | Z13: Quarter panel | AD13: Cowl side | AE13: Medium
H14: Very Large Part * H1 | I14: 10.9 | J14: H1 | K14: 11.8 | L14: H1 | M14: 2 | N14: H1 | O14: 0.5 | P14: H1 | T14: N15 | U14: 90.1-115.0 | V14: 6.6 | W14: Screw | Y14: Roof Bow | Z14: Roof | AD14: Cowl top | AE14: Medium
T15: N16 | U15: 115.1-150.0 | V15: 7.9 | W15: Solder | Y15: Roof Rail | Z15: Tailgate | AD15: D-pillar | AE15: Medium
T16: N17-N22 | U16: 150.1-700.0 | V16: 8.5 | W16: Stud | Z16: Underbody Reinforcement | AD16: Dash Panel | AE16: Large
W17: Stud bolt | Z17: Wheelhouse inner | AD17: Daub | AE17: Small
W18: Tab | Z18: Wheelhouse outer | AD18: Deck-lid | AE18: Large
W19: U-nut | Z19: Wheelhouse panel | AD19: Door | AE19: Large
B20: Other Robot Operations | C20: Secs | E20: Palm Buttons | F20: Secs | H20: Unload/Transfer/Position | J20: Unload | K20: Transfer | L20: Position | Q20: Portable Fixtures | T20: Fit Door / Hood / Decklids | W20: Weld | AD20: Door-hinge | AE20: Small
A21: =A20+1 -> 1 | B21: Rotates pounce to start position | C21: 2 | E21: Step to pedestal, press and release 2 palm buttons simultaneously and step away from pedestal | F21: 2.9 | H21: Very Small Part | J21: 1.7 | K21: 3.7 | L21: 0.8 | Q21: Obtain SMALL fixture and postion to body panel | R21: 4.4 | T21: Fit Door | U21: 17.8 | W21: Weld bolt | AD21: Door-opening-Panel | AE21: Large
A22: 2 | B22: Apply mastic daubs at PED stand | C22: 3 | E22: Press palm button located on fixture requiring one hand to activate | F22: 0.6 | H22: Small Part | J22: 1.7 | K22: 4 | L22: 0.8 | Q22: Obtain MEDIUM fixture and postion to body panel | R22: 5.5 | T22: Fit Decklid | U22: 21.9 | W22: Weld nut | AD22: Fastener | AE22: Small
A23: 3 | B23: Apply mastic bead at PED stand | C23: 275 | E23: Press and hold palm button (hold dependent on machine cycle time) | F23: 0.6 | H23: Medium Part | J23: 1.7 | K23: 5.2 | L23: 1.1 | Q23: Obtain LARGE fixture and postion to body panel | R23: 7.7 | T23: Fit Hood (assume same as decklid) | U23: 21.9 | AD23: Fender | AE23: Large
A24: 4 | B24: Apply adhesive at PED stand | C24: 275 | E24: Depress foot pedal | F24: 0.4 | H24: Large Part | J24: 2.6 | K24: 8.3 | L24: 2.3 | Q24: Pull detail locking in | R24: 1.9 | AD24: Floor | AE24: Large
A25: 5 | B25: Apply sealer at PED stand | C25: 275 | E25: Turn selector knob | F25: 1.2 | H25: Very Large Part * | I25: V | J25: 1.7 | K25: 10.4 | L25: 1.4 | Q25: Turn detail pin | R25: 1.2 | AD25: Floor-pan | AE25: Very Large
A26: 6 | B26: Repostions to another area on part | C26: 2 | E26: Press toggle switch | F26: 0.6 | H26: Very Large Part * | I26: F | J26: 1.7 | K26: 7.2 | L26: 1.4 | Q26: Press control button on fixture | R26: 0.5 | AD26: Frame rail | AE26: Large
A27: 7 | B27: Apply mastic bead at fixture | C27: 275 | E27: Press keypad button (when extra force not required to press) | F27: 0.5 | H27: Very Large Part * | I27: N | J27: 1.7 | K27: 9.2 | L27: 1.4 | Q27: Rotate fixture on bench | R27: 3.4 | AD27: Front floor pan crossmember | AE27: Medium
A28: 8 | B28: Apply adhesive at fixture | C28: 275 | E28: Firmly press keypad button (when button requires extra force) | F28: 1.2 | H28: Very Large Part * | I28: H | J28: 1.7 | K28: 9.2 | L28: 1.4 | Q28: Remove SMALL fixture after being unclamped from body | R28: 1.4 | AD28: Front Fender Body | AE28: Large
A29: 9 | B29: Apply sealer at fixture | C29: 275 | Q29: Remove MEDIUM fixture after being unclamped from body | R29: 3.1 | AD29: Grille Opening Reinforcement | AE29: Medium
A30: 10 | B30: Apply CLINCH nuts | C30: 4.5 | Q30: Remove LARGE fixture after being unclamped from body | R30: 4.4 | AD30: Header | AE30: Small
A31: 11 | B31: Apply WELD nuts | C31: 5.5 | AD31: Hood | AE31: Large
A32: 12 | B32: Applies date stamp | C32: 2 | AD32: J-clip | AE32: Very Small
AD33: J-nut | AE33: Very Small
AD34: Liftgate | AE34: Medium
AD35: Locator | AE35: Very Small
AD36: Lower back panel s/a | AE36: Large
AD37: Nut | AE37: Very Small
AD38: Nut and bolt assembly | AE38: Very Small
B39: Part Handling | AD39: Nut and Plate assembly | AE39: Small
B40: Note that lines between jobs contain "blanks" (not empty) to make this list work | E40: Walk | F40: Sec/ft | H40: Hoists | I40: Type | J40: 0 Hooks | K40: 1 Hook | L40: 2 Hooks | Q40: Open Close Doors, Decklids, Hoods | T40: Clamping | W40: GEO Fixtures | AD40: Nut and Washer Assembly | AE40: Very Small
B41: Walk / Carry Parts | E41: Standard walk with any other than large part | F41: 0.3 | H41: Obtain and engage part | I41: V | J41: 9.7 | K41: 11 | L41: 12.8 | Q41: Open Door | R41: 2.3 | T41: Close manually operated fixure clamp | U41: 11.4 | W41: fixture clamps close | X41: 1 | AD41: Package Tray | AE41: Medium
E42: Any walk with very large object or 2 operators walking in combination | F42: 0.4 | H42: Obtain and engage part | I42: F | J42: 7.4 | K42: 8.6 | L42: 10.4 | Q42: Open Hood | R42: 3.2 | T42: Open manually operated fixture clamp | U42: 2.3 | W42: fixture clamps open | X42: 1 | AD42: Palm button | AE42: Very Small
B43: Obtain / Select/ Load / Place Parts | E43: Unrestricted walk over a long distance such in a warehouse | F43: 0.2 | H43: Obtain and engage part | I43: N | J43: 9.5 | K43: 9.3 | L43: 11.1 | Q43: Open Decklid | R43: 2.1 | T43: Apply hand clamp | U43: 3.8 | W43: Shot Pins Extend | X43: 1 | AD43: Pillar | AE43: Medium
E44: Standard walk without part | F44: 0.3 | H44: Obtain and engage part | I44: H | J44: 7.7 | K44: 9.1 | L44: 10.9 | Q44: Close Door | R44: 2.1 | T44: Remove hand clamp | U44: 3.1 | W44: Shot Pins retract | X44: 1 | AD44: Plenum | AE44: Medium
B45: Unload / Transfer / Position Part | H45: Disengage from part and put aside | I45: V | J45: 4.6 | K45: 5.8 | L45: 7.5 | Q45: Close Hood | R45: 2.7 | T45: Enter vehicle | U45: 6.1 | W45: Slides extend | X45: 2 | AD45: Pot-rivet | AE45: Very Small
H46: Disengage from part and put aside | I46: F | J46: 5.2 | K46: 6.3 | L46: 8 | Q46: Close Decklid | R46: 2.1 | T46: Exit vehicle | U46: 2.2 | W46: Slides retract | X46: 2 | AD46: Push pin | AE46: Very Small
B47: Palm Buttons | H47: Disengage from part and put aside | I47: N | J47: 2.2 | K47: 3.4 | L47: 5 | Q47: Prop Open Hood | R47: 7.7 | T47: Sit in chair or on stool | U47: 3.9 | W47: Cylinders extend | X47: 1 | AD47: Quarter panel | AE47: Large
H48: Disengage from part and put aside | I48: H | J48: 6.1 | K48: 7.2 | L48: 8.9 | Q48: Remove prop rod (slave) from hood | R48: 1.4 | W48: Cylinders retract | X48: 1 | AD48: Rear Floor Pan | AE48: Very Large
B49: Handling with Hoists | Q49: Prop Open Decklid | R49: 7.7 | W49: Trunnion Rotate | X49: 4 | AD49: Reinforcement | AE49: Small
Q50: Remove prop rod (slave) from decklid | R50: 1.4 | W50: Table Rotate | X50: 4 | AD50: Rivet | AE50: Very Small
B51: Typical Part Sizes | AD51: Rivnut | AE51: Very Small
AD52: Roof | AE52: Large
AD53: Roof Bow | AE53: Medium
B54: Tip Dress Times | AD54: Roof Rail | AE54: Medium
B55: Carried Gun | C55: 18 sec | AD55: Screw | AE55: Very Small
B56: Ped Gun | C56: 11.5 sec | AD56: Solder | AE56: Very Small
AD57: Stud | AE57: Very Small
AD58: Stud bolt | AE58: Very Small
AD59: Tab | AE59: Very Small
AD60: Tailgate | AE60: Large
AD61: Teleauto ticket | AE61: Small
AD62: U-nut | AE62: Very Small
AD63: Underbody | AE63: Very Large
AD64: Underbody Reinforcement | AE64: Large
AD65: Weld | AE65: Very Small
AD66: Weld bolt | AE66: Very Small
AD67: Weld nut | AE67: Very Small
AD68: Wheelhouse inner | AE68: Large
AD69: Wheelhouse outer | AE69: Large
AD70: Wheelhouse panel | AE70: Large

Sheet Quick Time 1
A1: =Cover!B13 -> VOLVO | B1: =Cover!B15 -> 6700 | C1: =RIGHT(CELL("filename",D2),LEN(CELL("filename",D2))-FIND("]",CELL("filename",D2))) -> Quick Time 1
A2: =Cover!B17 -> FIREWALL | B2: =Cover!B25 -> 212 | D2: =Cover!B21 -> 16148
A4: Operator obtain small parts | B4: How many | C4: 1 | D4: =1.8*C4 -> 1.8 | F4: Geo welds = | G4: 4 | H4: secs. Per weld
A5: Operator load small parts | B5: How many | C5: 1 | D5: =1.8*C5 -> 1.8
A6: Operator place small part (no precision) | B6: How many | C6: 1 | D6: =0.5*C6 -> 0.5 | F6: Respot welds = | G6: 3.5 | H6: secs. Per weld
A7: Operator obtain medium parts | B7: How many | C7: 1 | D7: =2.4*C7 -> 2.4
A8: Operator load medium parts | B8: How many | C8: 1 | D8: =3*C8 -> 3
A9: Operator place medium part (no precision) | B9: How many | C9: 1 | D9: =1*C9 -> 1 | F9: MIG welds = | G9: 25 | H9: inches per min.
A10: Operator obtain large parts | B10: How many | C10: 1 | D10: =4.2*C10 -> 4.2
A11: Operator load large parts | B11: How many | C11: 1 | D11: =4.2*C11 -> 4.2
A12: Operator place large part (no precision) | B12: How many | D12: =1.8*C12 -> 0 | F12: Laser brazing = | G12: 130 | H12: inches per min.
A13: Operator total walk | B13: Total in feet | C13: 1 | D13: =0.3*C13 -> 0.3
A14: Operator hit P.B. | D14: =1*C14 -> 0 | F14: Note: Range of 95 inches/min to max speed of 173 inches/min. To achieve higher speeds 6 KW power unit needs to be used. 130 inches/min is an average.
A15: Operator Load Assist- load/unload part to fixt or rack(includes lwr, open/close clp and raise) | B15: # of loads /unloads | D15: =C15*12.5 -> 0
A16: Operator walk with load assist | B16: Total in feet | D16: =0.5*C16 -> 0
A17: Fixture - Clamp/Gripper close | B17: # of close | D17: =1*C17 -> 0
A18: Fixture - Clamp /Gripper open | B18: # of open | D18: =1*C18 -> 0 | F18: Adhesive/Seal = | G18: 300 | H18: mm per sec.
A19: Fixture - Suction Cup vacuum on | B19: # of vacuum on | D19: =1*C19 -> 0
A20: Fixture - Suction Cup vacuum off | B20: # of vacuum off | D20: =1*C20 -> 0
A21: Fixture - Manual Clamp close | B21: # of close | D21: =1.8*C21 -> 0
A22: Fixture - Manual Clamp open | B22: # of open | D22: =2.3*C22 -> 0
A23: Fixture - Shot pin extend | B23: # of extends | D23: =1*C23 -> 0
A24: Fixture - Shot pin retract | B24: # of retracts | D24: =1*C24 -> 0
A25: Fixture - Slide extend | B25: # of extends | D25: =2*C25 -> 0
A26: Fixture - Slide retract | B26: # of retracts | D26: =2*C26 -> 0
A27: Fixture - Pivot close | B27: # of close | D27: =2*C27 -> 0
A28: Fixture - Pivot open | B28: # of open | D28: =2*C28 -> 0
A29: Fixture - Trunnion rotates 180 | B29: # of rotates | C29: 1 | D29: =4*C29 -> 4
A30: Fixture - Turn Table rotates 180 | B30: # of rotates | D30: =6*C30 -> 0
A31: Robot pick part | B31: # of picks | C31: 1 | D31: =IF(C31=0,0, IF(C31=1, 6, IF(C31=2, 10, IF(C31=3, 14, IF(C31=4, 18))))) -> 6
A32: Robot rotate 45 | B32: # of rotates | C32: 1 | D32: =1*C32 -> 1
A33: Robot rotate 90 | B33: # of rotates | C33: 1 | D33: =2*C33 -> 2
A34: Robot rotate 180 | B34: # of rotates | C34: 1 | D34: =3*C34 -> 3
A35: Robot rotate 270 | B35: # of rotates | C35: 1 | D35: =4*C35 -> 4
A36: Robot place part | B36: # of places | C36: 1 | D36: =IF(C36=0,0, IF(C36=1, 6, IF(C36=2, 10, IF(C36=3, 14, IF(C36=4, 18))))) -> 6
A37: Robot moves on 7th axis | B37: Distance (# foot) | C37: 23 | D37: =0.3*C37 -> 6.9
A38: Robot rotate to home | B38: # of rotates | D38: =2*C38 -> 0
A39: Robot delay | B39: # of delays | D39: =1*C39 -> 0
A40: Robot date scribe | B40: # of date scribe | D40: =6*C40 -> 0
A41: Robot check tree (nuts & studs) | B41: # of check positions | D41: =2*C41 -> 0
A42: Robot changes EOAT (drop 1 and pick 1) | B42: # of changes | D42: =C42*15 -> 0
A43: Weld robot in | D43: =1.5*C43 -> 0
A44: Weld robot welds (GEO) | B44: # of welds -GEO- | C44: 1 | D44: =G4*C44 -> 4
A45: Weld robot welds (Respot) | B45: # of welds -Respot- | C45: 1 | D45: =G6*C45 -> 3.5
A46: Weld robot out | D46: =1.5*C46 -> 0
A47: Mig robot in | D47: =1.5*C47 -> 0
A48: Mig robot weld | B48: # of welds | D48: =1.75*C48 -> 0
A49: Mig robot weld | B49: Weld Length (mm) | D49: =C49/(G9*25.4/60) -> 0
A50: Mig robot out | D50: =1.5*C50 -> 0
A51: Laser brazing robot in | D51: =1.5*C51 -> 0
A52: Seam detection at start of process | B52: Weld Length (mm) | D52: =2*C52 -> 0
A53: Laser brazing robot welds | B53: Weld Length (mm) | D53: =C53/(G12*25.4/60) -> 0
A54: Laser brazing robot out | D54: =1.5*C54 -> 0
A55: Adh/Seal robot in | C55: 1 | D55: =1.5*C55 -> 1.5
A56: Adh/Seal robot | B56: # of Beads | C56: 44 | D56: =1.25*C56 -> 55
A57: Adh/Seal robot | B57: Adh/Seal Length (mm) | C57: 19897 | D57: =C57/G18 -> 66.32333333
A58: Adh/Seal robot out | C58: 1 | D58: =1.5*C58 -> 1.5
A59: Proj/clinch nut/stud Weld robot in | D59: =1.5*C59 -> 0
A60: Proj/clinch nut/stud Weld robot welds | B60: # of welds | D60: =5.5*C60 -> 0
A61: Proj/clinch nut/stud Weld robot out | D61: =1.5*C61 -> 0
A62: DA studs Weld robot in | C62: 1 | D62: =1.5*C62 -> 1.5
A63: DA studs Weld robot welds | B63: # of DA welds | C63: 18 | D63: =3.5*C63 -> 63
A64: DA studs Weld robot out | C64: 1 | D64: =1.5*C64 -> 1.5
A65: FDS robot in | D65: =1.5*C65 -> 0
A66: FDS robot Screws | B66: # of screws | D66: =C66*6 -> 0
A67: FDS robot out | D67: =1.5*C67 -> 0
A68: SPR robot in | D68: =1.5*C68 -> 0
A69: SPR robot Rivets | B69: # of Rivets | D69: =C69*4.5 -> 0
A70: SPR robot out | D70: =1.5*C70 -> 0
A71: Manual Weld - Operator obtains weld gun (medium) | D71: =C71*4 -> 0
A72: Manual Weld - Operator obtains weld gun (large) | D72: =5.5*C72 -> 0
A73: Manual Weld - Operator repositions weld gun (<6") | D73: =0.9*C73 -> 0
A74: Manual Weld - Operator repositions weld gun (>6",<24") | D74: =1.7*C74 -> 0
A75: Manual Weld - Operator repositions weld gun (>24") | D75: =2.5*C75 -> 0
A76: Manual Weld - Operator repositions weld gun through access hole | D76: =1.7*C76 -> 0
A77: Manual Weld - Operator rotates weld gun | D77: =1.7*C77 -> 0
A78: Manual Weld - Operator returns weld gun to hook | D78: =2*C78 -> 0
A79: Manual Weld - Operator releases weld gun | D79: =0.5*C79 -> 0
A80: Manual Weld - Operator welds - 1st in a group or only (simple) | D80: =2.6*C80 -> 0
A81: Manual Weld - Operator welds - each additional weld (simple) | D81: =0.8*C81 -> 0
A82: Manual Weld - Operator welds - 1st in a group or only (complex) | D82: =3.1*C82 -> 0
A83: Manual Weld - Operator welds - each additional weld (complex) | D83: =1.3*C83 -> 0
A84: Manual Weld - Operator welds - 1st in a group or only (heavy gauge) | D84: =3.4*C84 -> 0
A85: Manual Weld - Operator welds - each additional weld (heavy gauge) | D85: =1.6*C85 -> 0
A89: TOTAL ESTIMATED TIME | D89: =SUM(D4:D88) -> 249.9233333
A90: TOTAL AVAILABLE TIME | D90: =Cover!B25 -> 212
A91: DIFFERENCE | D91: =D90-D89 -> -37.92333333
